Cogmind - Beta 15 @@@ ROGUE MODE // 2025.06.21 @ 11:58:56 Player: leiavoia Result: Establishing 0b11! Performance ------------- Evolutions (9) 4500 Regions Visited (33) 6600 Robots Destroyed (439) 2195 Value Destroyed (25759) 25759 Prototype IDs (388) 7760 Alien Tech Used (18) 3600 Bonus (59148) 59148 TOTAL SCORE: 109562 Bonus ------- High Alert Combat Kills 1226 Follower Combat Kills 1624 Installed LC Capacitor 1000 Entered Garrisons 200 Network Hubs Disabled 400 Met Data Miner 300 Used Data Conduit 3000 Acquired ECA 300 Met Zhirov 300 Met R17 at Cetus 500 Found Hidden Lab 3000 Decrypted A0 Command 3000 Hacked Protovariant 500 Met R17 at Research 2000 Scanned by Researcher 500 Pursued by Intercept 2000 Acquired SGEMP 2000 Delivered SGEMP 2000 Destroyed MAIN.C Guards 500 Destroyed MAIN.C Shell 5000 Destroyed MAIN.C 10000 Met Architect 300 Destroyed A6 400 Destroyed A4 700 Destroyed A3 800 Destroyed A2 1000 Destroyed Architect 15000 Win 3000 Friendly Fire -1402 Cogmind --------- Core Integrity 1214/1850 Matter 405/425 Energy 3428/3450 System Corruption 1% Temperature Cool (15) Movement Treading (234) Ox1 Location 0b11 Command Parts ------- > --- POWER (3) -------- Singularity Reactor > --- PROPULSION (7) --- Experimental Biometal Heavy Treads Enhanced Armored Heavy Treads Advanced Heavy Siege Treads > --- UTILITY (11) ----- 2N-1CE's Frost Array Huge Storage Unit Experimental Energy Well Superbattery Experimental Targeting Computer Experimental Core Analyzer Heavy Reactive Plating Experimental Powered Armor Thermal Barrier AEGIS Remote Shield > --- WEAPON (5) ------- Cooled Nova Cannon L-Cannon > --- INVENTORY (25) --- Reinforced Quantum Reactor Improved Quantum Reactor Improved Quantum Reactor Enhanced Armored Heavy Treads Desublimator Experimental Cooling System Experimental Cooling System Experimental Matter Compressor (500) Experimental Weapon Cycler Heavy Regenerative Plating Graphene Brace Experimental EM Shield AEGIS Remote Shield Potential Cannon Linked Autogun Linked Autogun Enhanced Hardcell Cannon Hypervelocity Linear Accelerator Graviton Cannon Peak State ------------ > --- POWER ------------ Singularity Reactor > --- PROPULSION ------- Experimental Biometal Heavy Treads Enhanced Armored Heavy Treads Advanced Heavy Siege Treads > --- UTILITY ---------- 2N-1CE's Frost Array Huge Storage Unit Experimental Energy Well Experimental Targeting Computer Experimental Core Analyzer Centrium Heavy Armor Plating Advanced Powered Armor Graphene Brace Thermal Barrier AEGIS Remote Shield > --- WEAPON ----------- L-Cannon Graviton Cannon > --- INVENTORY -------- Reinforced Quantum Reactor Improved Quantum Reactor Improved Quantum Reactor Enhanced Armored Heavy Treads Experimental Cooling System Superbattery Experimental Matter Compressor Heavy Reactive Plating Heavy Regenerative Plating Experimental EM Shield AEGIS Remote Shield Advanced Dynamic Insulation System Transdimensional Reconstructor Subatomic Replicator Enhanced Nova Cannon Potential Cannon Cooled Nova Cannon Linked Autogun Enhanced Hardcell Cannon Advanced Remote Datajack [Rating: 266] Favorites ----------- Power Improved Deuterium Engine Engine Improved Deuterium Engine Power Core Neutrino Core Reactor Heavy Antimatter Reactor Propulsion Light Treads Treads Light Treads Leg Carbon-fiber Leg Wheel Wheel Flight Unit Makeshift Flight Unit Utility Huge Storage Unit Device Seismic Detector Storage Huge Storage Unit Processor Advanced Signal Interpreter Hackware Hacking Suite Protection Centrium Heavy Armor Plating Artifact LC Capacitor Weapon Enhanced Hardcell Cannon Energy Gun Enhanced Quantum Rifle Energy Cannon Enhanced Nova Cannon Ballistic Gun Advanced KE Penetrator Ballistic Cannon Enhanced Hardcell Cannon Launcher Improved Grenade Launcher Special Weapon Advanced Remote Datajack Impact Weapon Heavy Flail Slashing Weapon Chainsword Piercing Weapon Enhanced Force Lance Build | -11 -10 -10 -10 -9 -8 -8 -8 -7 -7 -7 -7 -6 -6 -6 -6 -6 -6 -5 -5 -5 -5 -4 -4 -4 -4 -3 -3 -3 -2 -2 -1 -1 -1 ------- Run | Yrd Mat Min Exi Min Mat Gar Mat Fac Low Low Dat Pro Fac Ext Cet Arc Hub Fac Upp Upp Zhi Pro Fac Arm Lab Res Qua Sec Res Tes Acc Com Ac0 Slots Evolved 18 | . . . . . 4 . . 2 . . . . 2 . . . . 2 . . . . 2 . . 2 . . 2 . 2 . . Power 2 | . . . . . . . . . . . . . 1 . . . . . . . . . . . . . . . . . 1 . . Propulsion 4 | . . . . . 2 . . 1 . . . . 1 . . . . . . . . . . . . . . . . . . . . Utility 9 | . . . . . 2 . . 1 . . . . . . . . . 1 . . . . 2 . . 2 . . 1 . . . . Weapon 3 | . . . . . . . . . . . . . . . . . . 1 . . . . . . . . . . 1 . 1 . . Parts Attached 332 | 9 12 1 1 4 29 22 1 16 6 5 9 9 21 38 6 9 3 15 1 2 4 . 6 23 6 8 17 6 2 6 2 18 15 Power 41 | 1 2 . . . 4 2 . 1 1 1 1 2 4 5 2 . . 2 . . 2 . 1 2 . 2 1 2 . . 1 2 . Engine 20 | 1 2 . . . 3 2 . 1 1 . . 1 1 5 1 . . 1 . . 1 . . . . . . . . . . . . Core 4 | . . . . . 1 . . . . 1 . . 2 . . . . . . . . . . . . . . . . . . . . Reactor 17 | . . . . . . . . . . . 1 1 1 . 1 . . 1 . . 1 . 1 2 . 2 1 2 . . 1 2 . Propulsion 79 | 2 . . . 2 9 10 . 4 1 3 2 2 6 17 1 2 1 2 1 . 1 . . 7 . . 2 . . 1 . 3 . Treads 58 | 2 . . . 1 8 10 . 4 1 . . . 2 11 1 2 1 2 1 . 1 . . 5 . . 2 . . 1 . 3 . Leg 15 | . . . . . . . . . . 1 2 2 4 5 . . . . . . . . . 1 . . . . . . . . . Wheel 5 | . . . . 1 1 . . . . 1 . . . 1 . . . . . . . . . 1 . . . . . . . . . Hover . | . . . . . . . . . . . . . . . . . . . . . . . . . . . . . . . . . . Flight 1 | . . . . . . . . . . 1 . . . . . . . . . . . . . . . . . . . . . . . Utility 131 | 3 4 . . . 8 9 . 8 1 1 4 3 9 9 1 6 2 8 . 2 . . 5 6 2 5 9 3 2 2 . 8 11 Device 62 | 2 1 . . . 2 6 . 1 1 . 1 1 5 5 . 3 1 6 . . . . . 3 1 3 6 2 1 1 . 5 5 Storage 13 | 1 3 . . . . . . . . . . 1 . 1 . . . . . 1 . . 2 . . . 1 . 1 . . . 2 Processor 11 | . . . . . . . . 1 . . . . 1 1 . . . 2 . 1 . . 2 . . 1 . . . . . 1 1 Hackware 7 | . . . . . . . . 2 . . . . . . . 3 . . . . . . . 1 . . . 1 . . . . . Protection 36 | . . . . . 6 3 . 4 . 1 3 1 3 2 1 . 1 . . . . . 1 2 . 1 1 . . 1 . 2 3 Artifact 2 | . . . . . . . . . . . . . . . . . . . . . . . . . 1 . 1 . . . . . . Weapon 81 | 3 6 1 1 2 8 1 1 3 3 . 2 2 2 7 2 1 . 3 . . 1 . . 8 4 1 5 1 . 3 1 5 4 Energy Gun 5 | 1 . . . . 1 . . . . . . . . . . . . . . . . . . 2 1 . . . . . . . . Energy Cannon 19 | . . . . . 2 . . 1 1 . 2 1 1 . . 1 . 1 . . . . . 1 1 . 3 . . 2 . 2 . Ballistic Gun 17 | 2 1 . . . 1 . . . . . . 1 1 5 1 . . 1 . . . . . 2 . . . . . . . . 2 Ballistic Cannon 23 | . 4 1 . 2 2 1 . . 1 . . . . . 1 . . 1 . . . . . 3 1 . 1 1 . . 1 2 1 Launcher 8 | . 1 . . . 2 . 1 1 1 . . . . . . . . . . . . . . . . 1 . . . 1 . . . Special Weapon 1 | . . . . . . . . . . . . . . . . . . . . . . . . . . . . . . . . 1 . Impact Weapon 2 | . . . . . . . . . . . . . . 1 . . . . . . . . . . . . 1 . . . . . . Slashing Weapon 5 | . . . 1 . . . . 1 . . . . . 1 . . . . . . 1 . . . . . . . . . . . 1 Piercing Weapon 1 | . . . . . . . . . . . . . . . . . . . . . . . . . 1 . . . . . . . . Special Melee Weapon . | . . . . . . . . . . . . . . . . . . . . . . . . . . . . . . . . . . Unidentified Prototypes 34 | . . . . . 2 1 . 1 . . . . . 1 . . . . . . 2 . . 1 4 . 8 7 . 4 . . 3 Corrupted Parts 6 | . . . . . . . . . . 1 . 3 2 . . . . . . . . . . . . . . . . . . . . System Corruption 41 | . . . . . . . . . . 7 . 17 17 . . . . . . . . . . . . . . . . . . . . Parts Lost 75 | . . . . 1 . 7 . 2 6 1 15 4 14 9 1 . 3 4 . . . . 3 3 1 . . 1 . . . . . Power 14 | . . . . . . 1 . . 1 . 1 2 3 2 1 . . 2 . . . . . . . . . 1 . . . . . Propulsion 27 | . . . . 1 . 2 . 2 4 . 6 . 2 5 . . 2 1 . . . . 1 1 . . . . . . . . . Utility 21 | . . . . . . 4 . . . 1 6 . 5 1 . . . 1 . . . . 1 1 1 . . . . . . . . Weapon 13 | . . . . . . . . . 1 . 2 2 4 1 . . 1 . . . . . 1 1 . . . . . . . . . Highest Loss Streak 13 | . . . . 1 . 4 . 1 4 1 13 2 7 5 1 . 3 4 . . . . 2 3 1 . . 1 . . . . . To Critical Strikes . | . . . . . . . . . . . . . . . . . . . . . . . . . . . . . . . . . . Average Backups 21 | 1 15 24 25 24 24 23 24 23 21 20 18 18 21 24 24 24 24 20 24 24 23 24 23 23 22 21 20 18 17 17 17 17 18 Power 1 | . 1 1 1 1 1 . . . . . 1 1 1 1 1 2 2 1 2 2 1 1 1 . . . 1 1 1 1 1 1 3 Propulsion 1 | . . 1 2 1 2 3 4 2 . . . . . 2 2 2 2 . 1 1 1 3 2 1 2 2 2 1 1 1 1 1 1 Utility 9 | . 5 8 10 11 11 13 13 13 12 12 9 10 12 12 13 12 12 11 13 13 12 12 10 9 11 10 8 5 5 6 6 5 8 Weapon 6 | . 8 12 10 10 9 6 7 6 6 6 6 5 5 5 7 6 6 5 6 6 5 5 5 9 7 6 7 6 5 6 6 6 4 Tool/Special . | . . . . . . . . . . . . . . . . . . . . . . . . . . . . . . . . . . Unused Backups 77 | . 1 3 1 4 8 5 . 4 1 . . . 1 5 1 1 1 . 1 . 3 . . 8 1 4 4 2 3 2 . 4 9 Power 13 | . 1 . . . 1 . . 2 . . . . . 1 . . 1 . . . 2 . . . . 1 . 1 . . . . 3 Propulsion 11 | . . . . . . 1 . . . . . . . 2 . . . . . . . . . 4 . . . 1 . 1 . 1 1 Utility 28 | . . 1 . 3 3 3 . . 1 . . . . 2 1 1 . . 1 . 1 . . 1 1 1 3 . . . . . 5 Weapon 20 | . . 2 1 1 3 1 . 2 . . . . 1 . . . . . . . . . . 3 . 1 1 . . 1 . 3 . Tool/Special 5 | . . . . . 1 . . . . . . . . . . . . . . . . . . . . 1 . . 3 . . . . Average Slot Usage (%) 87 | . 99 100 100 99 99 96 90 97 88 84 70 72 77 94 94 89 93 93 94 94 79 94 92 84 74 75 72 75 81 80 76 78 69 Engine 5 | . 14 14 14 14 8 8 9 7 7 4 . 5 5 11 7 6 6 4 5 5 2 . . 2 5 3 . . . . . . . Reactor 3 | . . . . . . . . . . . 3 1 . . 4 6 6 5 5 5 7 11 9 6 5 4 7 8 8 8 8 8 3 Treads 21 | . 27 28 28 24 35 36 36 37 26 15 9 . 1 18 34 33 33 28 29 29 29 29 24 17 15 14 14 14 13 13 12 12 11 Leg 2 | . . . . . . . . . . 5 6 16 20 20 . . . . . . . . . . . . . . . . . . . Device 15 | . 14 14 14 14 15 13 9 6 16 19 8 16 14 14 20 18 5 8 12 16 17 16 18 17 9 16 13 16 19 19 20 22 15 Storage 8 | . 14 14 14 14 9 9 9 7 7 7 7 8 6 7 6 6 6 5 5 5 5 5 8 5 5 4 5 6 9 7 4 7 7 Processor 3 | . . . . . . . . 4 4 . . . 5 2 . . . 4 5 5 5 5 7 10 10 9 7 4 4 4 4 2 7 Hackware 1 | . . . . . . . . 11 2 . . . . . . 3 18 4 . . . . . . 3 . . 2 4 2 . . . Protection 5 | . . . . . 11 10 9 4 5 7 9 7 2 2 6 3 1 8 9 5 5 5 6 4 3 2 2 4 4 5 8 8 7 Energy Cannon 3 | . . . . . 3 2 1 3 6 . 5 1 1 . . 3 4 3 3 5 . 4 6 3 3 6 7 3 4 5 8 9 5 Ballistic Gun 2 | . 10 . . . 4 . . . . . . . 1 9 8 4 6 8 11 11 . 12 8 7 . 1 1 . . . . . 3 Ballistic Cannon 9 | . 17 26 17 27 9 15 16 6 7 14 2 6 3 . 3 1 . 2 1 . . . . 2 11 4 3 8 13 10 12 7 3 Peak Build Rating 266 | 9 12 14 17 17 35 46 30 44 44 43 57 48 67 84 88 88 94 108 112 108 117 117 126 151 182 193 223 227 218 221 224 256 266 Average Rating 106 | 6 9 13 16 15 27 35 29 37 36 39 40 44 55 70 82 83 84 99 110 107 93 117 120 127 153 189 203 202 211 211 216 246 245 On Entrance 94 | . 7 12 14 17 17 35 31 30 36 36 41 41 47 67 63 88 84 82 107 108 108 117 117 102 151 180 190 208 194 214 208 217 247 Naked Turns . | . . . . . . . . . . . . . . . . . . . . . . . . . . . . . . . . . . Heaviest Build 280 | 12 94 94 94 96 110 122 117 125 121 121 140 121 128 122 141 141 137 153 153 154 157 158 179 171 183 188 206 205 211 219 232 258 280 Greatest Support 255 | 40 40 40 40 40 84 84 80 100 100 40 40 63 88 154 178 184 184 169 170 170 174 174 174 225 225 225 230 230 230 235 235 255 245 Greatest Overweight (x) 37 | 2 4 2 2 9 10 1 1 1 3 11 37 4 2 7 . . . 1 . . . . 1 1 . . . . . . . 1 1 Average Overweight (x) . | . . 2 2 3 1 1 1 . 1 5 8 1 1 . . . . . . . . . . . . . . . . . . . . Largest Inventory Capacity 25 | 8 25 25 25 25 25 25 25 25 25 25 25 25 25 25 25 25 25 25 25 25 25 25 25 25 25 25 25 25 25 25 25 25 25 Average Capacity 24 | 7 19 25 25 25 25 25 25 25 25 25 25 25 25 25 25 25 25 25 25 25 25 25 24 25 25 25 25 25 25 25 25 25 25 Most Carried 25 | 3 24 25 25 25 25 25 25 25 25 25 25 24 25 25 25 25 25 25 25 25 25 25 25 25 25 25 25 25 25 25 24 25 25 Average Carried 24 | 1 15 24 24 24 24 24 25 24 23 24 21 20 23 24 24 24 24 20 24 25 24 25 23 24 24 24 24 24 24 24 23 24 24 Final Capacity 25 | 8 25 25 25 25 25 25 25 25 25 25 25 25 25 25 25 25 25 25 25 25 25 25 25 25 25 25 25 25 25 25 25 25 25 Final Carried 25 | 3 24 25 25 25 25 25 25 24 25 25 22 24 25 25 25 25 22 25 25 25 25 25 25 25 25 25 25 25 25 25 24 25 25 Class Distribution -------------------- 27% | Scavenger-Mutant 22% | Mutant 19% | Scavenger-Tank 17% | Tank 6% | Commander-Mutant 4% | Hacker-Tank Dominant Class ---------------- Mutant | -10/Materials Mutant | -10/Mines Commander-Mutant | -10/Exiles Mutant | -9/Mines Scavenger-Mutant | -8/Materials Scavenger-Mutant | -8/Garrison Scavenger-Mutant | -8/Materials Scavenger-Mutant | -7/Factory Mutant | -7/Lower Caves Mutant | -7/Lower Caves Scavenger-Mutant | -7/Data Miner Scavenger-Mutant | -6/Proximity Caves Scavenger-Assassin | -6/Factory Scavenger-Mutant | -6/Extension Scavenger-Mutant | -6/Cetus Scavenger-Mutant | -6/Archives Scavenger-Mutant | -6/Hub_04(d) Scavenger-Tank | -5/Factory Scavenger-Tank | -5/Upper Caves Scavenger-Tank | -5/Upper Caves Scavenger-Mutant | -5/Zhirov Scavenger-Tank | -4/Proximity Caves Scavenger-Tank | -4/Factory Tank | -4/Armory Tank | -4/Lab Tank | -3/Research Tank | -3/Quarantine Hacker-Tank | -3/Section 7 Hacker-Tank | -2/Research Hacker-Tank | -2/Testing Tank | -1/Access Tank | -1/Command Scavenger-Tank | -1/Access_0 Resources | -11 -10 -10 -10 -9 -8 -8 -8 -7 -7 -7 -7 -6 -6 -6 -6 -6 -6 -5 -5 -5 -5 -4 -4 -4 -4 -3 -3 -3 -2 -2 -1 -1 -1 ----------- Run | Yrd Mat Min Exi Min Mat Gar Mat Fac Low Low Dat Pro Fac Ext Cet Arc Hub Fac Upp Upp Zhi Pro Fac Arm Lab Res Qua Sec Res Tes Acc Com Ac0 Matter Collected 25411 | 374 584 155 17 424 993 1482 91 1248 729 725 235 453 454 3699 345 338 . 408 276 86 153 280 497 1333 324 803 842 1070 1236 858 438 910 3551 Remotely 3161 | . . . . . . . . . . . . . . . . . . . . . . . . 365 . 292 176 563 996 567 112 90 . Salvage Created 22522 | 151 437 194 41 175 1112 996 123 605 640 319 288 336 539 3007 176 323 86 623 142 . 195 87 1397 1126 . 742 1649 891 938 723 393 1200 2868 Parts 951 | 15 20 13 . 8 66 58 11 27 24 9 9 5 22 123 8 16 4 19 5 . 5 3 58 56 . 31 49 31 34 45 16 48 113 Haulers Intercepted 11 | . 2 . . . 3 . . . . . . . 1 3 . . . 1 . . . . . . . 1 . . . . . . . Recyclers Shooed 15 | . 1 . . . 1 . . 2 . . . . . 4 . . . 2 . . . . 4 . . 1 . . . . . . . Parts Field Recycled . | . . . . . . . . . . . . . . . . . . . . . . . . . . . . . . . . . . Retrieved Matter . | . . . . . . . . . . . . . . . . . . . . . . . . . . . . . . . . . . Parts Self-Destructed 31 | . . . . . . . . . 15 4 . 4 . . . . . . 2 . 3 3 . . . . . . . . . . . Prevented 1 | . . . . . . . . . . . . 1 . . . . . . . . . . . . . . . . . . . . . Kills | -11 -10 -10 -10 -9 -8 -8 -8 -7 -7 -7 -7 -6 -6 -6 -6 -6 -6 -5 -5 -5 -5 -4 -4 -4 -4 -3 -3 -3 -2 -2 -1 -1 -1 ------- Run | Yrd Mat Min Exi Min Mat Gar Mat Fac Low Low Dat Pro Fac Ext Cet Arc Hub Fac Upp Upp Zhi Pro Fac Arm Lab Res Qua Sec Res Tes Acc Com Ac0 Combat Hostiles Destroyed 335 | . 5 7 . 6 26 30 4 19 11 5 4 3 10 17 4 . 1 8 1 . . 1 16 28 1 12 18 14 17 12 2 4 49 Melee 3 | . . . . . . . . . . . . . 1 . . . . . . . . . . 2 . . . . . . . . . Guns 78 | . . . . . 6 . . . . . . . 1 14 1 . 1 4 . . . 1 8 15 . 2 . . . . . . 25 Cannons 179 | . 5 2 . 6 14 20 2 14 8 2 4 2 6 1 3 . . 2 1 . . . 5 2 1 6 12 11 16 10 2 3 19 AOE 57 | . . 5 . . 6 10 2 5 3 3 . 1 2 2 . . . 2 . . . . . 9 . 4 . . . . . . 3 Classes Destroyed 29 | 3 4 1 . 3 2 3 . 1 2 . . . . 1 . . . . . . . . . 2 . . 2 2 1 2 . . . Worker 18 | 2 . 1 . . 2 . 1 1 . . . . . 3 . . 1 . . . . . 5 . . . 1 1 . . . . . Builder 9 | . . . . 1 1 . . . . . . . 1 1 . . . . . . . . . . . . 1 . . 4 . . . Tunneler 8 | 4 . 1 . . . . . . . . . . . 3 . . . . . . . . . . . . . . . . . . . Hauler 11 | . 2 . . . 3 . . . . . . . 1 3 . . . 1 . . . . . . . 1 . . . . . . . Recycler 30 | 1 2 2 . . 1 . . . . . . . . 15 . . . 1 . . . . 1 . . 2 1 1 1 . 2 . . Minesweeper 2 | . . . . . . . . . 1 1 . . . . . . . . . . . . . . . . . . . . . . . Mechanic 2 | . 1 . . . . . . 1 . . . . . . . . . . . . . . . . . . . . . . . . . Operator 13 | . . . . . . . . . . . . . . 1 . 9 . . . . . . . . . 1 . 1 1 . . . . Watcher 15 | . 2 . . . 4 . 2 . . . . . . 1 . . . . . . . . . 1 . . 1 . 1 2 . 1 . Swarmer 45 | . . 5 . . 3 4 2 3 6 . . . 2 7 . . . . . . . . . 4 . 9 . . . . . . . Saboteur 3 | . . . . . . . . . . . . . . . . . . . . . . . . 3 . . . . . . . . . Grunt 87 | . 5 2 . 3 16 11 . 7 2 3 . 2 4 4 . . . 6 . . . . 4 5 . 3 4 1 4 1 . . . Brawler 5 | . . . . . . . . 2 1 . . 1 . . . . . 1 . . . . . . . . . . . . . . . Duelist 3 | . . . . 1 . . . . . 1 . . . . . . . 1 . . . . . . . . . . . . . . . Researcher 3 | . . . . . . . . . . . . . . . . . . . . . . . . . . . 3 . . . . . . Sentry 43 | . . . . . 5 9 2 3 1 . . . 3 3 . . 1 . 1 . . 1 5 3 . . . 1 1 3 1 . . Demolisher 1 | . . . . . . . . . . . . . . . . . . . . . . . . 1 . . . . . . . . . Specialist 7 | . . . . . 2 1 . . . . . . . . . . . . . . . . 2 . . . . 2 . . . . . Hunter 21 | . . . . . . 1 . 1 1 . . . . 3 . . . . . . . . 2 . . . 8 2 2 . . 1 . Programmer 34 | . . . . . . 3 . 3 . 1 . . 1 . . . . . . . . . 3 4 . . 3 4 4 5 1 2 . Heavy 1 | . . . . . . . . . . . . . . . . . . . . . . . . . . . . 1 . . . . . Q-Series 2 | . . . . . . . . . . . . . . . . . . . . . . . . . . . . . 2 . . . . Behemoth 2 | . . . . . . 1 . . . . . . . . . . . . . . . . . . . . . 1 . . . . . Cetus Guard 4 | . . . . . . . . . . . . . . . 4 . . . . . . . . . . . . . . . . . . Enhanced Grunt 36 | . . . . . . . . . . . 4 . . . . . . . . . . . . . . . . . . . . . 32 Enhanced Sentry 2 | . . . . . . . . . . . . . . . . . . . . . . . . . . . . . . . . . 2 Enhanced Hunter 5 | . . . . . . . . . . . . . . . . . . . . . . . . . . . . . . . . . 5 Enhanced Programmer 5 | . . . . . . . . . . . . . . . . . . . . . . . . . . . . . . . . . 5 Tracker 3 | . . . . . . . . . . . . . . . . . . . . . . . . . . . 1 . 2 . . . . Combat Programmer 3 | . . . . . . . . . . . . . . . . . . . . . . . . . . . 1 . 2 . . . . Striker 2 | . . . . . . . . . . . . . . . . . . . . . . . . . . . . . . 2 . . . Executioner 2 | . . . . . . . . . . . . . . . . . . . . . . . . . . . . 2 . . . . . Alpha 7 1 | . . . . . . . . . . . . . . . . . . . . . . . . . . . . . . 1 . . . Fortress 1 | . . . . . . . . . . . . . . . . . . . . . . . . . . . 1 . . . . . . Decomposer 3 | . . . . . . . . . . 3 . . . . . . . . . . . . . . . . . . . . . . . Packrat 2 | . . . . . . . . . . 2 . . . . . . . . . . . . . . . . . . . . . . . Samaritan 5 | . . . . . . . . . 1 2 . . . . . . . . 2 . . . . . . . . . . . . . . Assembled 11 | . . . . 2 . . . . . . . . . . . . . . . . . . . 9 . . . . . . . . . Thug 1 | . . . . . 1 . . . . . . . . . . . . . . . . . . . . . . . . . . . . Best Kill Streak 12 | 3 2 3 . 2 7 3 4 3 7 3 1 3 4 5 3 3 1 5 1 . . 1 11 9 1 6 12 4 4 5 2 1 4 Combat Bots Only 9 | . 2 3 . 2 6 3 4 3 7 3 1 3 4 4 3 . 1 5 1 . . 1 9 9 1 5 5 4 4 4 1 1 4 Max Kills in Single Turn 4 | 1 1 3 . 1 2 2 2 2 3 2 1 1 1 2 1 1 1 2 1 . . 1 1 4 1 2 3 1 1 2 1 1 2 Gunslinging 1 | . . . . . . . . . . . . . . 1 . . . . . . . . . 1 . . . . . . . . . Exploded 4 | . . 3 . . 2 2 2 1 3 2 . 1 1 1 . . . 1 . . . . . 4 . 2 . . . . . . 1 Melee 1 | . . . . . . . . . . . . . 1 . . . . . . . . . . 1 . . . . . . . . . Uniques/NPCs Destroyed 10 | . . . . . . . . . . . . . . . . . . . . . . . . . 1 . . . . . . 3 6 A5 (-4/Lab) Zhirov (-1/Command) Svarog (-1/Command) MAIN.C (-1/Command) A8 (-1/Access_0) Architect (-1/Access_0) A6 (-1/Access_0) A2 (-1/Access_0) A4 (-1/Access_0) A3 (-1/Access_0) Combat | -11 -10 -10 -10 -9 -8 -8 -8 -7 -7 -7 -7 -6 -6 -6 -6 -6 -6 -5 -5 -5 -5 -4 -4 -4 -4 -3 -3 -3 -2 -2 -1 -1 -1 -------- Run | Yrd Mat Min Exi Min Mat Gar Mat Fac Low Low Dat Pro Fac Ext Cet Arc Hub Fac Upp Upp Zhi Pro Fac Arm Lab Res Qua Sec Res Tes Acc Com Ac0 Hostile Shots Fired 2920 | . 9 15 . 7 158 190 16 143 78 11 78 36 260 244 38 2 64 38 13 . . 5 173 143 51 41 138 381 149 72 10 30 327 Missed 802 | . 2 5 . 2 49 57 3 45 25 3 19 13 94 70 15 2 16 6 3 . . . 48 31 3 12 23 128 15 19 3 10 81 Hits 2118 | . 7 10 . 5 109 133 13 98 53 8 59 23 166 174 23 . 48 32 10 . . 5 125 112 48 29 115 253 134 53 7 20 246 Melee 39 | . . . . 1 . . . 5 1 . . 1 . . . . . 14 . . . . . 2 . . . . . . . . 15 Projectile 2079 | . 7 10 . 4 109 133 13 93 52 8 59 22 166 174 23 . 48 18 10 . . 5 125 110 48 29 115 253 134 53 7 20 231 AOE 9 | . . . . . . . . . . . . . . . . . . . . . . . . 9 . . . . . . . . . Critical Strikes 86 | . . . . . 3 6 . 3 1 2 . 2 1 4 3 . 5 2 . . . . 6 5 2 1 7 8 4 3 . 4 14 Actively Blocked 13 | . . . . . . . . . . . . . . . . . . . . . . . . . . . . . . . . . 13 Part Disruptions 8 | . . . . . . . . 1 . . 1 . . . . . 1 . . . . 1 . . . . . . 2 . . . 2 Damage Taken 29273 | . 101 162 . 91 1412 2312 175 1114 893 152 2632 622 1836 1990 466 . 1146 868 48 . . 73 1322 1510 1247 400 1075 2257 959 417 73 374 3546 Core 2342 | . 16 7 . . 148 164 . 26 41 11 360 26 293 258 41 . 114 89 . . . 9 62 153 51 . 98 50 7 28 . . 290 Absorbed by Shields 10699 | . . . . . . 26 . 140 138 36 . . . 87 165 . 77 27 50 . . 76 1062 848 . 386 983 1522 967 398 75 384 3252 Reduced by Siege Mode 743 | . . . . . . . . . . . . . . . . . . . . . . . 31 6 75 12 43 181 122 . . 74 199 Redirected to Core 49 | . . . . . . . . . . . . . . . . . . . . . . . . . . . 49 . . . . . . Ignored by Resistances 5472 | . . . . . 51 176 . 34 . . 85 . 52 . . . . . . . . . . . . . 320 381 1407 401 18 18 2529 Regen/Repaired (Parts) 3836 | . . . . . 93 . . 258 . . . . . . . . . . . . . . 560 . . . . 2925 . . . . . Core Remaining (%) 67 | 100 . . . 90 . . 43 . . . . 33 . . . . 16 . . . . 90 . . 97 . . 48 . 97 . . 65 Volleys Fired 1621 | 21 30 14 . 19 104 125 16 92 54 35 35 10 33 113 26 38 4 18 10 . . 28 50 91 19 54 77 50 95 69 9 68 214 Largest 5 | 2 2 2 . 2 2 2 2 2 2 2 2 2 2 2 2 2 2 3 3 . . 3 3 3 3 3 3 3 4 4 5 3 4 Hottest 900 | 40 66 66 . 66 108 108 75 123 170 80 165 180 115 110 75 115 115 169 160 . . 125 205 221 174 225 300 236 294 349 440 900 900 Shots Fired 3006 | 42 60 23 . 38 191 189 30 147 77 71 66 23 52 196 50 72 6 48 21 3 . 43 120 177 46 80 100 113 196 174 25 98 429 Gun 823 | 42 22 . . . 42 . . . . . . 1 18 168 35 35 3 20 11 3 . 17 49 110 . 13 4 . . . . . 230 Cannon 2110 | . 38 18 . 38 142 176 29 139 69 66 66 22 32 26 15 37 3 25 10 . . 26 71 57 46 64 96 113 196 172 25 98 195 Launcher 69 | . . 5 . . 7 13 1 8 8 5 . . 2 2 . . . 3 . . . . . 10 . 3 . . . 2 . . . Special 4 | . . . . . . . . . . . . . . . . . . . . . . . . . . . . . . . . . 4 Kinetic 1836 | 42 60 18 . 38 141 130 27 94 21 66 7 13 30 168 50 42 3 29 17 3 . 17 49 111 40 26 30 69 113 85 9 4 284 Thermal 1072 | . . . . . 43 46 2 45 48 . 59 10 20 26 . 30 3 16 4 . . 26 71 56 6 51 45 44 83 87 16 94 141 Explosive 69 | . . 5 . . 7 13 1 8 8 5 . . 2 2 . . . 3 . . . . . 10 . 3 . . . 2 . . . Electromagnetic 25 | . . . . . . . . . . . . . . . . . . . . . . . . . . . 25 . . . . . . Robot Hit Streak 60 | 4 10 6 . 3 13 29 10 12 8 12 9 10 17 12 10 11 6 10 9 . . . 13 17 21 10 11 11 17 11 16 29 60 Robot Miss Streak 4 | 2 2 1 . 3 2 3 2 3 2 2 2 1 3 4 2 4 . 2 . 1 . . 2 3 1 2 4 2 4 4 . 1 2 Penetration Max 6 | . . . . . . . . . . . . . . 1 1 1 . 1 . . . . 1 1 . . 5 . . . . 6 1 Secondary Targets 7 | . . . . . . . . . . . . . . 1 . . . . . . . . . 1 . . . . . . . . 5 Max Gunslinging Chain 1 | . . . . . . . . . . . . . . 1 . . . . . . . . . 1 . . . . . . . . 1 Shots Hit Robots 1810 | 26 35 12 2 12 112 106 15 79 47 33 50 19 48 185 35 49 4 28 8 . 4 . 79 71 35 29 52 66 100 62 8 61 338 Core Hits 990 | 8 16 14 1 8 59 51 8 42 35 17 25 9 34 67 15 19 7 20 3 . 2 2 42 68 9 24 29 21 36 23 5 17 254 Critical Kills 37 | . . . . . 1 . . . . . . . . . . 1 . 3 2 . . . 5 8 . . 6 2 1 2 . . 6 Critical Parts Destroyed 33 | 2 . . . . 1 . . . . . . . . 1 1 2 . 1 1 . . . 6 9 . . 5 . . . . . 4 Critical Strikes 114 | 2 1 . . . 3 2 . 4 3 3 . 1 3 2 3 3 . 5 3 . . . 12 17 . . 13 6 8 8 . . 12 Meltdown 13 | . . . . . . . . . . . . . . . . . . 1 1 . . . 3 . . . 1 2 1 2 . . 2 Destroy 58 | 2 . . . . 2 . . . . . . . . 1 1 3 . 3 2 . . . 9 17 . . 10 . . . . . 8 Blast 39 | . 1 . . . 1 2 . 4 3 3 . 1 1 . 2 . . 1 . . . . . . . . 1 4 7 6 . . 2 Corrupt 1 | . . . . . . . . . . . . . . . . . . . . . . . . . . . 1 . . . . . . Sever 3 | . . . . . . . . . . . . . 2 1 . . . . . . . . . . . . . . . . . . . Melee Attacks 149 | . . . 2 . . . . 20 . . 20 8 17 50 5 . 6 . . . 4 . . . 8 . 3 6 . . . . . Kinetic 9 | . . . . . . . . . . . . . . . . . . . . . . . . . . . 3 6 . . . . . Impact 12 | . . . . . . . . . . . . . . 1 5 . 6 . . . . . . . . . . . . . . . . Slashing 120 | . . . 2 . . . . 20 . . 20 8 17 49 . . . . . . 4 . . . . . . . . . . . . Piercing 8 | . . . . . . . . . . . . . . . . . . . . . . . . . 8 . . . . . . . . Sneak Attacks 34 | . . . . . . . . . . . 1 . 1 32 . . . . . . . . . . . . . . . . . . . Combat Hostiles . | . . . . . . . . . . . . . . . . . . . . . . . . . . . . . . . . . . Follow-up Attacks 2 | . . . . . . . . . . . . . . 2 . . . . . . . . . . . . . . . . . . . Damage Inflicted 79509 | 265 697 607 146 294 3640 4299 483 2490 1936 1193 1195 972 1429 6749 1081 1442 350 1362 289 . 293 163 3044 3391 1155 1655 4773 3118 5193 3449 459 2709 19188 Guns 17208 | 265 169 . . . 599 . . . . . . . 279 3078 635 688 60 394 85 . . 163 1317 1339 . 175 26 . . . . . 7936 Cannons 46231 | . 419 264 . 291 2077 2976 343 1973 1308 907 1110 405 673 521 446 754 54 646 204 . . . 1712 452 1094 936 4604 2835 5100 3342 378 2709 7698 Explosions 10888 | . 99 325 . . 953 1323 131 517 628 284 . 99 125 100 . . 236 304 . . . . . 1593 . 538 . . . 79 . . 3554 Melee 4708 | . . . 146 . . . . . . . 85 468 314 2951 . . . . . . 293 . . . 61 . 107 283 . . . . . Ramming 474 | . 10 18 . 3 11 . 9 . . 2 . . 38 99 . . . 18 . . . . 15 7 . 6 36 . 93 28 81 . . Kinetic 38310 | 265 588 264 . 291 2218 2291 343 1135 332 907 161 86 483 3078 1081 872 60 587 218 . . 163 1317 1387 1094 516 895 2303 3820 2406 90 . 9059 Thermal 28569 | . 99 . . . 458 685 . 838 976 . 949 418 469 521 . 570 54 453 71 . . . 1712 404 . 595 3140 815 1280 936 288 2709 10129 Explosive 6900 | . . 325 . . 953 1323 131 517 628 284 . . 125 100 . . . 304 . . . . . 1593 . 538 . . . 79 . . . Electromagnetic 938 | . . . . . . . . . . . . . . . . . 236 . . . . . . . . . 702 . . . . . . Impact . | . . . . . . . . . . . . . . . . . . . . . . . . . . . . . . . . . . Slashing 4257 | . . . 146 . . . . . . . 85 468 314 2951 . . . . . . 293 . . . . . . . . . . . . Piercing 61 | . . . . . . . . . . . . . . . . . . . . . . . . . 61 . . . . . . . . Highest Corruption 28 | . . . . . . 1 1 4 4 11 11 28 19 19 19 19 6 9 9 9 9 9 . 4 15 . 4 5 3 9 1 2 1 Average Corruption 8 | . . . . . . 1 1 2 4 9 11 23 10 19 19 16 5 8 9 9 9 9 . 3 12 . 3 4 2 4 1 1 1 Corruption Purged 21 | . . . . . . . . . . . . . . . . 19 . . . . . . . . . . . . . . . 2 . Corruption Blocked . | . . . . . . . . . . . . . . . . . . . . . . . . . . . . . . . . . . Effects 780 | . . . . . . . 5 19 60 90 39 72 13 148 22 20 1 22 36 30 8 58 . 22 13 . 9 26 5 17 . 14 31 Message Errors 179 | . . . . . . . 1 2 14 21 9 19 2 42 5 4 . 2 6 9 2 14 . 3 1 . . 7 1 4 . 3 8 Matter Fused 174 | . . . . . . . 2 4 10 22 11 12 2 29 3 5 . 3 10 9 3 16 . 6 4 . 3 4 . 3 . 5 8 Heat Flow Errors 96 | . . . . . . . . 2 10 10 2 11 2 18 5 3 . 4 5 2 1 3 . 3 1 . 1 4 . 3 . 2 4 Energy Discharges 93 | . . . . . . . . 1 9 12 3 11 1 15 3 3 . 2 3 6 . 8 . 2 2 . . 6 3 2 . . 1 Parts Rejected 4 | . . . . . . . . . . . 1 . . 1 . . 1 . . . . . . . . . . . 1 . . . . Parts Fused 10 | . . . . . . . . . 1 . . 1 . 2 1 1 . 1 . . 1 . . 1 . . . . . . . 1 . Data Loss (minor) 95 | . . . . . . . 1 6 7 11 5 8 1 16 3 1 . 6 4 1 1 5 . 2 3 . 4 3 . 1 . 2 4 Data Loss (major) 44 | . . . . . . . . 1 4 7 1 4 1 5 . 1 . . 4 . . 4 . 2 . . . 2 . 3 . . 5 Misfires 44 | . . . . . . . 1 3 2 5 1 5 2 8 . . . 2 3 3 . 6 . 1 1 . . . . . . 1 . Alerts 13 | . . . . . . . . . 2 . 1 1 . 2 . . . 1 1 . . 2 . . 1 . 1 . . 1 . . . Misdirections 4 | . . . . . . . . . . . . . . 4 . . . . . . . . . . . . . . . . . . . Weapon Failures 24 | . . . . . . . . . 1 2 5 . 2 6 2 2 . 1 . . . . . 2 . . . . . . . . 1 Overload Shots 24 | . . . . . . . . 7 3 . . . . . . . . . . . . . . . . . . . . 1 3 8 2 Effects 1 | . . . . . . . . . . . . . . . . . . . . . . . . . . . . . . . . 1 . Heat Surge 1 | . . . . . . . . . . . . . . . . . . . . . . . . . . . . . . . . 1 . Overflow Damage 3412 | . 9 . . . 33 48 . 68 155 177 14 37 . 495 . 7 . 1 34 . 54 . 6 64 13 34 798 117 176 310 52 110 600 Projectiles 2320 | . . . . . 33 8 . . 155 105 14 . . . . 7 . 1 34 . . . 6 33 13 34 787 117 169 310 18 110 366 Explosions 459 | . 9 . . . . 40 . 68 . 72 . . . 5 . . . . . . . . . 31 . . . . . . . . 234 Melee 633 | . . . . . . . . . . . . 37 . 490 . . . . . . 54 . . . . . 11 . 7 . 34 . . Knockbacks 122 | . 2 2 . 2 22 6 5 7 . 3 3 . 1 1 . . . 3 . . . . . 5 1 2 4 15 16 7 1 . 14 Impact 2 | . . . . . . . . . . . . . . 1 . . . . . . . . . . . . . . . . 1 . . Kinetic 116 | . 2 2 . 2 21 6 4 7 . 3 3 . 1 . . . . 3 . . . . . 4 1 2 4 14 16 7 . . 14 Secondary 4 | . . . . . 1 . 1 . . . . . . . . . . . . . . . . 1 . . . 1 . . . . . Self-Inflicted Damage 676 | . . 47 . . 15 70 34 56 87 53 . 59 13 66 . . 100 . . . . . . 32 . 44 . . . . . . . Shots 20 | . . 3 . . 1 2 1 1 2 2 . 1 1 2 . . 1 . . . . . . 2 . 1 . . . . . . . Rammed 20 | . 2 1 . 1 1 . 1 . . 1 . . . 3 . . . 1 . . . . 2 . . 1 1 . 2 1 2 . . Targets Rammed 28 | . 2 1 . 1 1 . 1 . . 1 . . 5 4 . . . 1 . . . . 3 1 . 1 1 . 2 1 2 . . Kicked 6 | . . . . . . . . . . . . . 5 1 . . . . . . . . . . . . . . . . . . . Crushed 2 | . . . . . . . . . . . . . . . . . . . . . . . 1 1 . . . . . . . . . Highest Temperature 380 | . 48 60 . 30 234 234 25 192 268 226 202 230 345 229 223 208 126 322 281 131 197 241 233 212 229 276 353 162 328 380 . 130 204 Average Temperature 75 | . 13 21 . 10 56 64 13 56 90 100 66 110 111 58 110 81 44 105 99 79 111 95 72 60 94 83 82 50 124 128 . 60 53 Received Heat Transfer 4170 | . 57 36 . 36 477 648 18 268 180 46 . 126 549 471 24 . 180 177 . . . . 349 117 . 4 82 94 117 20 . . 94 Effects 12 | . . . . . . . . . . . . . 4 . . . . 1 . . . . . . 2 . 1 . 3 1 . . . Shutdowns 1 | . . . . . . . . . . . . . . . . . . . . . . . . . . . 1 . . . . . . Energy Bleed 3 | . . . . . . . . . . . . . 1 . . . . 1 . . . . . . . . . . . 1 . . . Interference 7 | . . . . . . . . . . . . . 2 . . . . . . . . . . . 2 . . . 3 . . . . Damage (minor) 1 | . . . . . . . . . . . . . 1 . . . . . . . . . . . . . . . . . . . . Siege Activations 36 | . . . . . . . . . . . . . . . . . . . . . . . 3 2 1 1 6 6 5 3 . 3 6 Total Turns 1260 | . . . . . . . . . . . . . . . . . . . . . . . 91 70 61 15 80 82 110 13 . 490 248 Longest Duration 380 | . . . . . . . . . . . . . . . . . . . . . . . 49 65 61 15 19 33 39 6 . 380 140 Martial Activations . | . . . . . . . . . . . . . . . . . . . . . . . . . . . . . . . . . . Shielding Activations . | . . . . . . . . . . . . . . . . . . . . . . . . . . . . . . . . . . Robots Disrupted 1 | . . . . . . . . . . . 1 . . . . . . . . . . . . . . . . . . . . . . Combat Hostiles 1 | . . . . . . . . . . . 1 . . . . . . . . . . . . . . . . . . . . . . Robots Corrupted 6 | . . . . . . . . . . . . . . 1 . . . . . . . . . . . . 4 . 1 . . . . Combat Hostiles 4 | . . . . . . . . . . . . . . . . . . . . . . . . . . . 4 . . . . . . Parts Fried 6 | . . . . . . . . . . . . . . . . . . . . . . . . . . . 3 . 3 . . . . Impact Corruptions 5 | . . . . . . . . . . . . . . 2 . . . . . . . . . . . . 1 . 1 . 1 . . Robots Melted 13 | . . . . . . . . . . . . . . . . . . 1 1 . . . 3 . . . 1 2 1 2 . . 2 Combat Hostiles 11 | . . . . . . . . . . . . . . . . . . . . . . . 3 . . . 1 2 1 2 . . 2 Parts Melted 50 | . . . . 1 . 2 . . 2 . 6 . 3 4 1 1 . . . . . . 13 2 . 2 2 2 2 3 . . 4 Heat Transferred 23089 | . 50 . . . 666 999 . 990 1798 . 1101 50 785 950 . 1050 100 650 100 . . . 2600 407 . 522 703 629 962 703 222 987 6065 Parts Sabotaged 3 | . . . . . . . . . . . . . . . . . . . . . . . . 3 . . . . . . . . . Parts Stolen . | . . . . . . . . . . . . . . . . . . . . . . . . . . . . . . . . . . Parts Stripped 38 | . . . . . . . . . . . . . . . . . . . . . . . . . . . 18 20 . . . . . Power Chain Reactions 1 | . . . . . . . . . . . . 1 . . . . . . . . . . . . . . . . . . . . . Alert | -11 -10 -10 -10 -9 -8 -8 -8 -7 -7 -7 -7 -6 -6 -6 -6 -6 -6 -5 -5 -5 -5 -4 -4 -4 -4 -3 -3 -3 -2 -2 -1 -1 -1 ------- Run | Yrd Mat Min Exi Min Mat Gar Mat Fac Low Low Dat Pro Fac Ext Cet Arc Hub Fac Upp Upp Zhi Pro Fac Arm Lab Res Qua Sec Res Tes Acc Com Ac0 Maximum Alert Level 5 | . . . . . 1 5 3 1 . . . . . 2 1 . 1 . . . . . 1 2 . 1 2 1 1 2 1 5 . Low Security (%) 54 | 100 100 100 . 100 58 . . 58 . . . . 100 66 48 100 86 100 . . . . 84 15 . 45 43 95 73 25 . 1 . Level 1 15 | . . . . . 41 7 . 41 . . . . . 5 51 . 13 . . . . . 15 52 . 54 35 4 26 59 100 . . Level 2 6 | . . . . . . 25 . . . . . . . 27 . . . . . . . . . 32 . . 20 . . 15 . . . Level 3 2 | . . . . . . 15 100 . . . . . . . . . . . . . . . . . . . . . . . . . . Level 4 2 | . . . . . . 36 . . . . . . . . . . . . . . . . . . . . . . . . . . . Level 5 17 | . . . . . . 13 . . . . . . . . . . . . . . . . . . . . . . . . . 97 . High Security . | . . . . . . . . . . . . . . . . . . . . . . . . . . . . . . . . . . Max Security . | . . . . . . . . . . . . . . . . . . . . . . . . . . . . . . . . . . Peak Influence 2105 | 15 64 98 . 114 394 2105 1069 374 . . . . 134 581 272 148 280 130 . . . . 383 458 . 260 424 222 381 473 307 577 . Initial 1025 | . . 3 . . . 250 1025 367 . . . . . 51 272 58 4 112 . . . . . 169 . . 121 220 16 130 283 194 . Average 215 | 2 13 10 . 9 150 1067 909 189 . . . . 42 179 200 70 54 60 . . . . 70 328 . 169 249 40 108 303 266 192 . Influence Increases 22779 | 35 228 246 . 317 912 2025 152 733 255 175 . 85 405 1393 290 228 400 283 20 . 5 20 508 805 . 510 675 499 735 711 161 2714 7254 Destroy 0b10 Robot/C 6360 | . 100 160 . 220 560 840 80 400 220 100 . 60 200 600 160 80 40 160 20 . . 20 320 400 . 240 420 280 340 240 40 60 . Destroy 0b10 Robot/NC 665 | 35 35 20 . 10 55 5 15 10 15 10 . 15 10 155 10 45 5 10 . . 5 . 30 25 . 20 20 15 15 30 25 20 . Destroy Leader 1172 | . 48 30 . 30 144 40 34 120 20 20 . 10 52 66 . . 20 12 . . . . 90 92 . 42 82 60 102 24 24 10 . Allied During Kill 813 | . . 11 . 56 8 99 . 4 . . . . . 414 114 50 18 . . . . . . 29 . . . . . . 10 . . Trap Triggered on 0b10 30 | . . . . . . . . . . . . . 30 . . . . . . . . . . . . . . . . . . . . Successful Hack 255 | . 9 . . . 27 . 5 18 . . . . . 41 . . . 36 . . . . 9 5 . 16 . 23 35 24 7 . . Select Force Hacks 50 | . . . . . . . . . . . . . . . . . 50 . . . . . . . . . . . . . . . . Disable Machine 1245 | . 30 . . . . 90 . 90 . . . . . 15 . 45 165 15 . . . . 15 90 . 30 90 75 30 90 . 180 195 Anti-Garrison Action 850 | . . . . . . 800 . . . . . . . . . . . . . . . . . . . . . . . . . 50 . Destroy Structure 10949 | . 6 25 . 1 88 151 18 46 . . . . 23 27 6 8 102 50 . . . . 44 164 . 132 48 46 198 258 55 2394 7059 Partial Spotted 15 | . . . . . . . . . . . . . . . . . . . . . . . . . . . . . 15 . . . . Lose Combat Pursuer 375 | . . . . . 30 . . 45 . 45 . . 90 75 . . . . . . . . . . . 30 15 . . 45 . . . Influence Decreases 15525 | 35 219 177 78 317 526 306 1448 1184 605 183 . 85 300 1011 631 362 182 482 51 . 5 20 161 742 410 294 499 861 532 471 330 150 2868 Entered New Map 6513 | . . 6 78 . . 136 1080 442 133 2 . . . 54 215 88 8 118 13 . . . . 178 410 . 95 172 14 103 190 110 2868 Time Decay 6935 | 35 219 171 . 247 506 . 198 682 432 171 . 65 161 528 206 254 70 290 38 . 5 20 131 474 . 294 404 418 368 368 140 40 . Lost Part 482 | . . . . 10 . 70 . 20 40 10 . 20 139 40 10 . 30 23 . . . . 30 30 . . . 10 . . . . . Lost Ally 808 | . . . . 60 20 100 20 40 . . . . . 218 200 20 70 . . . . . . 60 . . . . . . . . . Purge Threat 787 | . . . . . . . 150 . . . . . . 171 . . 4 51 . . . . . . . . . 261 150 . . . . Squads Dispatched 81 | . 3 . . 1 5 . 4 7 . . . . 7 7 . . 3 3 . . . . 3 5 . 9 7 6 6 4 1 . . Investigation 16 | . 1 . . 1 2 . . 1 . . . . . 4 . . 2 1 . . . . . . . 4 . . . . . . . Extermination 20 | . . . . . . . . 4 . . . . 1 . . . 1 1 . . . . 1 2 . . 2 2 3 2 1 . . Reinforcement 30 | . 2 . . . 3 . 3 2 . . . . 3 1 . . . 1 . . . . 2 2 . 5 3 2 . 1 . . . Assault 4 | . . . . . . . 1 . . . . . . 2 . . . . . . . . . . . . . . . 1 . . . Garrison 3 | . . . . . . . . . . . . . 3 . . . . . . . . . . . . . . . . . . . . Intercept 8 | . . . . . . . . . . . . . . . . . . . . . . . . 1 . . 2 2 3 . . . . Searches Triggered . | . . . . . . . . . . . . . . . . . . . . . . . . . . . . . . . . . . Construction Impeded 7 | . . . . . 1 . . . . . . . 3 . . . . 1 . . . . 1 . . . 1 . . . . . . Haulers Reinforced 1 | . . . . . . . . . . . . . . . . . . . . . . . . . . 1 . . . . . . . Active Scanning Responses . | . . . . . . . . . . . . . . . . . . . . . . . . . . . . . . . . . . Cargo Convoy Interrupts . | . . . . . . . . . . . . . . . . . . . . . . . . . . . . . . . . . . Stealth | -11 -10 -10 -10 -9 -8 -8 -8 -7 -7 -7 -7 -6 -6 -6 -6 -6 -6 -5 -5 -5 -5 -4 -4 -4 -4 -3 -3 -3 -2 -2 -1 -1 -1 --------- Run | Yrd Mat Min Exi Min Mat Gar Mat Fac Low Low Dat Pro Fac Ext Cet Arc Hub Fac Upp Upp Zhi Pro Fac Arm Lab Res Qua Sec Res Tes Acc Com Ac0 Distress Signals 53 | . 1 . . . 4 . . 1 . . . . 1 3 2 . . . . . . . 5 4 . 2 . . . 1 1 28 . Communications Jammed 6 | . . . . . . . . . . . . . . . . . . . . . . . . . . . . . . 2 . 4 . Distress Signals 6 | . . . . . . . . . . . . . . . . . . . . . . . . . . . . . . 2 . 4 . Times Spotted 542 | . 12 7 . 10 39 42 10 27 11 8 4 4 21 45 9 23 11 10 1 . . . 27 48 1 22 25 20 27 17 3 6 52 Peak Tracking Total 13 | . 2 3 . 3 5 5 5 5 7 4 3 3 6 13 5 2 8 5 1 . . 1 10 8 1 5 10 4 5 8 2 2 5 Tactical Retreats 20 | . . . . . 2 . . 3 . 1 . . 4 5 . . . . . . . . . . . 2 1 . . 2 . . . Traps | -11 -10 -10 -10 -9 -8 -8 -8 -7 -7 -7 -7 -6 -6 -6 -6 -6 -6 -5 -5 -5 -5 -4 -4 -4 -4 -3 -3 -3 -2 -2 -1 -1 -1 ------- Run | Yrd Mat Min Exi Min Mat Gar Mat Fac Low Low Dat Pro Fac Ext Cet Arc Hub Fac Upp Upp Zhi Pro Fac Arm Lab Res Qua Sec Res Tes Acc Com Ac0 Traps Triggered 31 | . 3 . . . . 11 . 3 . . . . . 3 . . . 1 . . . 1 . 1 . . . . 1 2 . 5 . Indirectly . | . . . . . . . . . . . . . . . . . . . . . . . . . . . . . . . . . . Trap Hack Attempts . | . . . . . . . . . . . . . . . . . . . . . . . . . . . . . . . . . . Triggered . | . . . . . . . . . . . . . . . . . . . . . . . . . . . . . . . . . . Disarmed . | . . . . . . . . . . . . . . . . . . . . . . . . . . . . . . . . . . Reprogrammed . | . . . . . . . . . . . . . . . . . . . . . . . . . . . . . . . . . . Reused 4 | . . . . . . . . . . . . 1 3 . . . . . . . . . . . . . . . . . . . . Traps Extracted 1 | . . . . . . . . 1 . . . . . . . . . . . . . . . . . . . . . . . . . Installed 7 | . . . . . . . . 1 . 1 . 1 4 . . . . . . . . . . . . . . . . . . . . Triggered 4 | . . . . . . . . . . . . 1 3 . . . . . . . . . . . . . . . . . . . . Most Traps Carried 6 | . . . . . . 4 4 4 6 6 5 5 4 . . . . . . . . . . . . . . . . . . . . Machines | -11 -10 -10 -10 -9 -8 -8 -8 -7 -7 -7 -7 -6 -6 -6 -6 -6 -6 -5 -5 -5 -5 -4 -4 -4 -4 -3 -3 -3 -2 -2 -1 -1 -1 ---------- Run | Yrd Mat Min Exi Min Mat Gar Mat Fac Low Low Dat Pro Fac Ext Cet Arc Hub Fac Upp Upp Zhi Pro Fac Arm Lab Res Qua Sec Res Tes Acc Com Ac0 Machines Disabled 108 | . 2 . . . . 11 . 6 1 . . . . 1 1 3 11 1 1 . . . 2 6 5 2 6 7 2 9 . 14 17 Max in Single Turn 10 | . 2 . . . . 1 . 1 1 . . . . 1 1 1 10 1 1 . . . 1 1 2 1 1 1 1 1 . 4 4 Garrison Access 1 | . . . . . . . . . . . . . . . . . . . . . . . . . . . . . 1 . . . . Garrison Relay 5 | . . . . . . 5 . . . . . . . . . . . . . . . . . . . . . . . . . . . Phase Generator 1 | . . . . . . . . . . . . . . . . . . . . . . . . . . . . . . . . 1 . Network Hub 2 | . . . . . . . . . . . . . . . . . 2 . . . . . . . . . . . . . . . . Machines Repaired . | . . . . . . . . . . . . . . . . . . . . . . . . . . . . . . . . . . Machines Dismantled . | . . . . . . . . . . . . . . . . . . . . . . . . . . . . . . . . . . Machines Sabotaged 1 | . . . . . . . . . . . . . . . . . 1 . . . . . . . . . . . . . . . . Overloaded Fab Kills . | . . . . . . . . . . . . . . . . . . . . . . . . . . . . . . . . . . Hacking | -11 -10 -10 -10 -9 -8 -8 -8 -7 -7 -7 -7 -6 -6 -6 -6 -6 -6 -5 -5 -5 -5 -4 -4 -4 -4 -3 -3 -3 -2 -2 -1 -1 -1 --------- Run | Yrd Mat Min Exi Min Mat Gar Mat Fac Low Low Dat Pro Fac Ext Cet Arc Hub Fac Upp Upp Zhi Pro Fac Arm Lab Res Qua Sec Res Tes Acc Com Ac0 Machines Accessed 111 | . 8 1 2 2 9 2 3 9 1 . 4 . 1 16 1 . 3 5 2 . 4 . 3 4 2 3 2 9 9 4 2 . . Terminals 72 | . 6 . . 1 6 2 3 3 . . . . . 16 1 . 3 4 . . . . 1 2 . 3 2 9 5 3 2 . . Fabricators 6 | . . . . . . . . 2 . . . . . . . . . 1 . . . . . 2 . . . . 1 . . . . Repair Stations 4 | . . . . . 1 . . 2 . . . . . . . . . . . . . . 1 . . . . . . . . . . Recycling Units 6 | . 2 . . . 1 . . 1 . . . . 1 . . . . . . . . . 1 . . . . . . . . . . Scanalyzers 3 | . . . . . . . . . . . . . . . . . . . . . . . . . . . . . 2 1 . . . Garrison Access 3 | . . . . . 1 . . 1 . . . . . . . . . . . . . . . . . . . . 1 . . . . Total Hacks 351 | . 22 1 2 4 22 7 6 29 1 . 28 . 2 43 1 . 6 26 2 . 13 . 15 9 23 16 3 19 37 12 2 . . Successful 178 | . 9 1 2 2 9 1 3 13 1 . 28 . . 12 1 . 3 11 2 . 13 . 8 2 23 10 . 11 8 4 1 . . Failed 171 | . 12 . . 2 13 6 3 16 . . . . 2 31 . . 3 14 . . . . 7 7 . 6 3 8 29 8 1 . . Catastrophic 46 | . 1 . . . 3 1 1 3 . . . . . 6 . . . 2 . . . . . 3 . 2 2 3 15 3 1 . . Database Lockouts 2 | . 1 . . . . . . . . . . . . . . . . 1 . . . . . . . . . . . . . . . Manual 96 | . 12 . 1 4 7 1 4 9 . . . . . 16 . . 4 15 . . . . 4 . . 6 . 4 9 . . . . Terminals 216 | . 19 . . 3 14 7 6 10 . . . . . 43 1 . 6 22 . . . . 11 4 . 16 3 19 19 11 2 . . Fabricators 21 | . . . . . . . . 6 . . . . . . . . . 4 . . . . . 5 . . . . 6 . . . . Repair Stations 15 | . . . . . 3 . . 9 . . . . . . . . . . . . . . 3 . . . . . . . . . . Recycling Units 9 | . 3 . . . 2 . . 1 . . . . 2 . . . . . . . . . 1 . . . . . . . . . . Scanalyzers 6 | . . . . . . . . . . . . . . . . . . . . . . . . . . . . . 5 1 . . . Garrison Access 13 | . . . . . 3 . . 3 . . . . . . . . . . . . . . . . . . . . 7 . . . . Terminal Hacks 128 | . 3 1 2 2 4 1 3 1 1 . 28 . . 10 1 . 1 5 2 . 13 . 3 1 23 6 . 11 2 3 1 . . Record 41 | . . . 1 . . . . . . . 11 . . . 1 . . . 1 . 5 . . . 22 . . . . . . . . Part Schematic 14 | . . . . . . . . . . . 9 . . . . . . 1 . . 4 . . . . . . . . . . . . Robot Schematic 5 | . . . . . . . . . . . 5 . . . . . . . . . . . . . . . . . . . . . . Robot Analysis 3 | . 2 . . 1 . . . . . . . . . . . . . . . . . . . . . . . . . . . . . Prototype ID Bank 11 | . . . . . 1 . . . . . 3 . . . . . . . . . 4 . . . . 2 . . . 1 . . . Open Door 19 | . . 1 . 1 . . . . 1 . . . . 7 . . . . 1 . . . . 1 . 1 . 5 . . 1 . . Branch Access Points 1 | . . . . . 1 . . . . . . . . . . . . . . . . . . . . . . . . . . . . Emergency Access Points 2 | . . . . . . 1 . . . . . . . . . . . . . . . . . . . . . 1 . . . . . Terminal Index 1 | . . . . . . . . 1 . . . . . . . . . . . . . . . . . . . . . . . . . Unreport Threat 8 | . . . . . . . 1 . . . . . . 2 . . 1 1 . . . . . . . . . 2 1 . . . . Locate Traps 7 | . 1 . . . 1 . . . . . . . . 1 . . . . . . . . 1 . . . . 1 1 1 . . . Maintenance Status 1 | . . . . . . . . . . . . . . . . . . 1 . . . . . . . . . . . . . . . Surveillance Status 1 | . . . . . . . . . . . . . . . . . . . . . . . 1 . . . . . . . . . . Patrol Status 1 | . . . . . . . . . . . . . . . . . . . . . . . . . . 1 . . . . . . . Reinforcement Status 1 | . . . . . . . . . . . . . . . . . . 1 . . . . . . . . . . . . . . . Hauler Manifests 5 | . . . . . 1 . 1 . . . . . . . . . . . . . . . 1 . . 1 . 1 . . . . . Registered Components 1 | . . . . . . . . . . . . . . . . . . 1 . . . . . . . . . . . . . . . Zone Layout 3 | . . . . . . . 1 . . . . . . . . . . . . . . . . . . 1 . 1 . . . . . Proto ID Catalog 1 | . . . 1 . . . . . . . . . . . . . . . . . . . . . . . . . . . . . . Protovariant Controls 1 | . . . . . . . . . . . . . . . . . . . . . . . . . . . . . . 1 . . . Release Object 1 | . . . . . . . . . . . . . . . . . . . . . . . . . 1 . . . . . . . . Fabricator Hacks 8 | . . . . . . . . 3 . . . . . . . . . 3 . . . . . 1 . . . . 1 . . . . Network Status 4 | . . . . . . . . 2 . . . . . . . . . . . . . . . 1 . . . . 1 . . . . Load Schematic 1 | . . . . . . . . . . . . . . . . . . 1 . . . . . . . . . . . . . . . Build 3 | . . . . . . . . 1 . . . . . . . . . 2 . . . . . . . . . . . . . . . Repair Station Hacks 10 | . . . . . 2 . . 6 . . . . . . . . . . . . . . 2 . . . . . . . . . . Scan Component 6 | . . . . . 1 . . 4 . . . . . . . . . . . . . . 1 . . . . . . . . . . Repair 4 | . . . . . 1 . . 2 . . . . . . . . . . . . . . 1 . . . . . . . . . . Recycling Unit Hacks 3 | . 1 . . . 1 . . . . . . . . . . . . . . . . . 1 . . . . . . . . . . Retrieve Components 3 | . 1 . . . 1 . . . . . . . . . . . . . . . . . 1 . . . . . . . . . . Scanalyzer 3 | . . . . . . . . . . . . . . . . . . . . . . . . . . . . . 2 1 . . . Insert Component 3 | . . . . . . . . . . . . . . . . . . . . . . . . . . . . . 2 1 . . . Garrison Access Hacks 2 | . . . . . 1 . . . . . . . . . . . . . . . . . . . . . . . 1 . . . . Unlock Access 1 | . . . . . 1 . . . . . . . . . . . . . . . . . . . . . . . . . . . . Seal Access 1 | . . . . . . . . . . . . . . . . . . . . . . . . . . . . . 1 . . . . Unauthorized Hacks 24 | . 5 . . . 1 . . 3 . . . . . 2 . . 2 3 . . . . 2 . . 4 . . 2 . . . . Terminals 22 | . 5 . . . 1 . . 1 . . . . . 2 . . 2 3 . . . . 2 . . 4 . . 2 . . . . Track 1 | . . . . . . . . . . . . . . . . . . . . . . . . . . 1 . . . . . . . Assimilate 2 | . . . . . . . . 1 . . . . . 1 . . . . . . . . . . . . . . . . . . . Botnet 8 | . . . . . 1 . . . . . . . . 1 . . . 1 . . . . 1 . . 2 . . 2 . . . . Operators 3 | . . . . . . . . . . . . . . . . . . 1 . . . . 1 . . 1 . . . . . . . Skim 6 | . 5 . . . . . . . . . . . . . . . . 1 . . . . . . . . . . . . . . . Sabotage 2 | . . . . . . . . . . . . . . . . . 2 . . . . . . . . . . . . . . . . Fabricators 2 | . . . . . . . . 2 . . . . . . . . . . . . . . . . . . . . . . . . . Liberate 1 | . . . . . . . . 1 . . . . . . . . . . . . . . . . . . . . . . . . . Haulers 1 | . . . . . . . . 1 . . . . . . . . . . . . . . . . . . . . . . . . . Repair Stations . | . . . . . . . . . . . . . . . . . . . . . . . . . . . . . . . . . . Recycling Units . | . . . . . . . . . . . . . . . . . . . . . . . . . . . . . . . . . . Scanalyzers . | . . . . . . . . . . . . . . . . . . . . . . . . . . . . . . . . . . Garrison Access . | . . . . . . . . . . . . . . . . . . . . . . . . . . . . . . . . . . Data Cores Recovered 3 | . . . . . . . . . . . . . . . . . . . . . . . . . . 1 . 1 1 . . . . Used . | . . . . . . . . . . . . . . . . . . . . . . . . . . . . . . . . . . Hacking Detections 74 | . 6 . . 1 9 2 3 8 . . . . 1 12 . . 2 4 . . . . 2 3 . 2 2 5 8 2 2 . . Full Trace Events 11 | . . . . 1 3 1 . 1 . . . . . 4 . . . 1 . . . . . . . . . . . . . . . Feedback Events . | . . . . . . . . . . . . . . . . . . . . . . . . . . . . . . . . . . Feedback Blocked . | . . . . . . . . . . . . . . . . . . . . . . . . . . . . . . . . . . Robot Schematics Acquired 6 | . . . . . . . . . . . 5 . . . . . . . . . . . . . . . 1 . . . . . . Robots Built . | . . . . . . . . . . . . . . . . . . . . . . . . . . . . . . . . . . Authchips . | . . . . . . . . . . . . . . . . . . . . . . . . . . . . . . . . . . Time . | . . . . . . . . . . . . . . . . . . . . . . . . . . . . . . . . . . Total Robot Build Rating . | . . . . . . . . . . . . . . . . . . . . . . . . . . . . . . . . . . Part Schematics Acquired 16 | . . . . . . . . . . . 9 . . . . . . 1 . . 4 . . . . . 2 . . . . . . Parts Built 5 | . . . . . . . . 2 . . . . . . . . . 3 . . . . . . . . . . . . . . . Authchips . | . . . . . . . . . . . . . . . . . . . . . . . . . . . . . . . . . . Time 217 | . . . . . . . . 117 . . . . . . . . . 100 . . . . . . . . . . . . . . . Total Part Build Rating 31 | . . . . . . . . 14 . . . . . . . . . 17 . . . . . . . . . . . . . . . Parts Repaired 4 | . . . . . 1 . . 2 . . . . . . . . . . . . . . 1 . . . . . . . . . . Time 157 | . . . . . 38 . . 93 . . . . . . . . . . . . . . 26 . . . . . . . . . . Parts Recycled . | . . . . . . . . . . . . . . . . . . . . . . . . . . . . . . . . . . Recycled Matter . | . . . . . . . . . . . . . . . . . . . . . . . . . . . . . . . . . . Retrieved Matter . | . . . . . . . . . . . . . . . . . . . . . . . . . . . . . . . . . . Retrieved Components 3 | . 2 . . . . . . . . . . . . . . . . . . . . . 1 . . . . . . . . . . Parts Scanalyzed . | . . . . . . . . . . . . . . . . . . . . . . . . . . . . . . . . . . Part Schematics Acquired . | . . . . . . . . . . . . . . . . . . . . . . . . . . . . . . . . . . Parts Damaged . | . . . . . . . . . . . . . . . . . . . . . . . . . . . . . . . . . . Bothacking | -11 -10 -10 -10 -9 -8 -8 -8 -7 -7 -7 -7 -6 -6 -6 -6 -6 -6 -5 -5 -5 -5 -4 -4 -4 -4 -3 -3 -3 -2 -2 -1 -1 -1 ------------ Run | Yrd Mat Min Exi Min Mat Gar Mat Fac Low Low Dat Pro Fac Ext Cet Arc Hub Fac Upp Upp Zhi Pro Fac Arm Lab Res Qua Sec Res Tes Acc Com Ac0 Used RIF Installer . | . . . . . . . . . . . . . . . . . . . . . . . . . . . . . . . . . . Robots Hacked 2 | . . . . . . . . . . . . . . . . . . . . . . . . . . . . . . . . . 2 Non-combat . | . . . . . . . . . . . . . . . . . . . . . . . . . . . . . . . . . . Combat 1 | . . . . . . . . . . . . . . . . . . . . . . . . . . . . . . . . . 1 Robot Hacks Applied 1 | . . . . . . . . . . . . . . . . . . . . . . . . . . . . . . . . . 1 parse_system 1 | . . . . . . . . . . . . . . . . . . . . . . . . . . . . . . . . . 1 Manual 1 | . . . . . . . . . . . . . . . . . . . . . . . . . . . . . . . . . 1 Relay Couplers Released 21 | . . . . . . 21 . . . . . . . . . . . . . . . . . . . . . . . . . . . Machine Destruction 21 | . . . . . . 21 . . . . . . . . . . . . . . . . . . . . . . . . . . . Fabnet Peak Effective % . | . . . . . . . . . . . . . . . . . . . . . . . . . . . . . . . . . . Robots Rewired 32 | . . . 4 . . 8 . . 2 . . . . 14 . . . . . . . . . 4 . . . . . . . . . Allies Hacked . | . . . . . . . . . . . . . . . . . . . . . . . . . . . . . . . . . . Hacks Repelled . | . . . . . . . . . . . . . . . . . . . . . . . . . . . . . . . . . . Allies | -11 -10 -10 -10 -9 -8 -8 -8 -7 -7 -7 -7 -6 -6 -6 -6 -6 -6 -5 -5 -5 -5 -4 -4 -4 -4 -3 -3 -3 -2 -2 -1 -1 -1 -------- Run | Yrd Mat Min Exi Min Mat Gar Mat Fac Low Low Dat Pro Fac Ext Cet Arc Hub Fac Upp Upp Zhi Pro Fac Arm Lab Res Qua Sec Res Tes Acc Com Ac0 Total Allies 56 | . . 3 4 . . 8 . 2 2 . . . . 27 . . . . . . . . . 4 . . . . . . 3 3 . Largest Group 19 | . . 3 7 7 1 5 1 2 2 2 . . . 19 16 6 5 . . . . . . 4 . . . . . . 3 3 . Highest-Rated Group 632 | . . 40 85 85 16 99 23 64 43 43 . . . 632 531 227 201 . . . . . . 183 . . . . . . 379 376 . Highest-Rated Ally 135 | . . 16 21 21 16 31 23 32 30 30 . . . 99 99 97 96 . . . . . . 47 . . . . . . 135 132 . Initial Warlord ECA Mod 86 | . . . . . . . 7 6 6 6 6 5 5 5 5 5 5 4 4 4 4 3 3 3 . . . . . . . . . Warlord Squad Rendezvous 3 | . . . . . . . . . . . . . . . . . . . . . . . . 3 . . . . . . . . . Muscle 1 | . . . . . . . . . . . . . . . . . . . . . . . . 1 . . . . . . . . . Pyro 2 | . . . . . . . . . . . . . . . . . . . . . . . . 2 . . . . . . . . . Total Orders 7 | . . . . . . . 1 . . . . . . 2 . 4 . . . . . . . . . . . . . . . . . STAY 3 | . . . . . . . . . . . . . . 1 . 2 . . . . . . . . . . . . . . . . . ROAM 1 | . . . . . . . 1 . . . . . . . . . . . . . . . . . . . . . . . . . . FOLLOW 3 | . . . . . . . . . . . . . . 1 . 2 . . . . . . . . . . . . . . . . . Ally Attacks 374 | . . 5 . 41 12 45 . 7 . 3 . . . 125 79 20 8 . . . . . . 17 . . . . . . 12 . . Total Damage 7561 | . . 49 . 477 151 714 . 210 . 68 . . . 2636 1523 587 158 . . . . . . 511 . . . . . . 477 . . Kills 57 | . . 1 . 9 2 12 . 1 . . . . . 17 6 4 1 . . . . . . 1 . . . . . . 3 . . Allies Corrupted 3 | . . . . . . . . 1 . 1 . . . . . . 1 . . . . . . . . . . . . . . . . Allies Melted . | . . . . . . . . . . . . . . . . . . . . . . . . . . . . . . . . . . Intel | -11 -10 -10 -10 -9 -8 -8 -8 -7 -7 -7 -7 -6 -6 -6 -6 -6 -6 -5 -5 -5 -5 -4 -4 -4 -4 -3 -3 -3 -2 -2 -1 -1 -1 ------- Run | Yrd Mat Min Exi Min Mat Gar Mat Fac Low Low Dat Pro Fac Ext Cet Arc Hub Fac Upp Upp Zhi Pro Fac Arm Lab Res Qua Sec Res Tes Acc Com Ac0 Active Infowar (turns) 34433 | 75 1495 2568 1618 2532 1654 304 . 1729 2371 2871 204 801 609 471 . 36 256 604 972 852 304 1620 436 1090 50 641 629 1131 1053 848 290 4319 . Optics 269 | . . . . . . . . . . . . . . 269 . . . . . . . . . . . . . . . . . . . Sensors 12137 | . . . . . . 2 . 635 674 . . . 527 202 . . . 584 972 852 304 1620 432 1004 50 440 578 1129 901 584 243 404 . Terrain 3163 | 55 . . . . . . . . . . . 770 557 . . . . 223 . . . . 398 283 . 463 268 146 . . . . . Structural 8130 | . . . . . 1652 302 . 1090 2011 2871 204 . . . . . . . . . . . . . . . . . . . . . . Seismic 11386 | 20 1495 2568 1618 2532 1652 . . 406 . . . 801 2 . . 36 256 . . . . . . . . . . . . . . . . Decoding 2 | . . . . . . . . . . . . . . . . . . . . 2 . . . . . . . . . . . . . Cloaking 499 | . . . . . . . . . . . . . . . . . . . . . . . . . . 102 397 . . . . . . Jamming 6373 | . . . . . . . . . . . . . . . . . . . . . . . . . . . . . 916 848 290 4319 . ECM 2 | . . . . . . . . . . . . . . . . . . 2 . . . . . . . . . . . . . . . Robot Analysis Total 154 | . 2 . . 1 . . . . . . 151 . . . . . . . . . . . . . . . . . . . . . . Derelict Logs Recovered 12 | . . 1 . 2 . . . . 1 2 . 1 . . . . . . 2 1 . 2 . . . . . . . . . . . Drone Launches . | . . . . . . . . . . . . . . . . . . . . . . . . . . . . . . . . . . Drone Recoveries . | . . . . . . . . . . . . . . . . . . . . . . . . . . . . . . . . . . Exploration | -11 -10 -10 -10 -9 -8 -8 -8 -7 -7 -7 -7 -6 -6 -6 -6 -6 -6 -5 -5 -5 -5 -4 -4 -4 -4 -3 -3 -3 -2 -2 -1 -1 -1 ------------- Run | Yrd Mat Min Exi Min Mat Gar Mat Fac Low Low Dat Pro Fac Ext Cet Arc Hub Fac Upp Upp Zhi Pro Fac Arm Lab Res Qua Sec Res Tes Acc Com Ac0 Turns Passed 51864 | 196 1498 2568 1618 2532 2215 2439 408 2714 2371 2871 870 1590 918 3150 428 547 295 811 1020 891 304 1698 670 1215 387 642 970 1334 1080 848 290 5816 4660 Spaces Moved 20217 | 79 548 748 482 671 732 819 139 940 811 850 232 577 333 1205 161 188 156 375 593 497 163 900 198 401 173 275 364 613 494 335 153 2809 2203 Core 8 | 6 . . . . . . . . . . 2 . . . . . . . . . . . . . . . . . . . . . . Treads 18148 | 73 548 748 482 547 724 819 139 940 811 590 13 . . 663 161 188 156 375 593 497 163 900 198 401 173 275 364 613 494 335 153 2809 2203 Legs 1458 | . . . . . . . . . . . 47 577 333 501 . . . . . . . . . . . . . . . . . . . Wheels 603 | . . . . 124 8 . . . . 260 170 . . 41 . . . . . . . . . . . . . . . . . . . Hover . | . . . . . . . . . . . . . . . . . . . . . . . . . . . . . . . . . . Flight . | . . . . . . . . . . . . . . . . . . . . . . . . . . . . . . . . . . Fastest Speed 50 | 50 160 320 320 215 230 232 240 160 160 245 215 190 190 120 160 160 160 160 160 162 162 164 164 145 145 145 145 150 150 150 155 151 151 Average Speed 207 | 154 227 320 320 307 241 234 240 228 267 320 291 243 196 183 160 160 160 160 161 162 163 164 206 200 145 145 146 150 150 154 155 177 179 Slowest Speed 1900 | 160 480 320 320 480 242 240 240 240 400 400 1900 400 260 330 160 160 160 240 162 162 164 164 245 246 145 145 150 150 150 155 155 238 234 Overloaded Moves . | . . . . . . . . . . . . . . . . . . . . . . . . . . . . . . . . . . Propulsion Burnouts . | . . . . . . . . . . . . . . . . . . . . . . . . . . . . . . . . . . Robots Hopped . | . . . . . . . . . . . . . . . . . . . . . . . . . . . . . . . . . . Potential Cave-ins 11 | . . . . . . . . . . . . 2 . . . . . . . . . . . 4 . 2 . . . . 1 2 . Cave-ins Triggered . | . . . . . . . . . . . . . . . . . . . . . . . . . . . . . . . . . . Teleports 5 | . . . . . . . . . . . . . . . . . . . . . . . . 1 . . . 1 . . . 1 2 Exploration Rate (%) 58 | 6 93 96 91 99 69 89 22 35 94 97 80 69 11 96 56 81 16 10 73 57 60 82 10 31 97 10 55 42 22 43 7 76 98 Regions Visited 33 Branch Regions 22 Pre-discovered Areas 33 | . . . 1 . . . . . 1 . 27 . . . . . . . 1 . 3 . . . . . . . . . . . . Known Exits Taken 20 | . . 1 . . 1 . . 1 1 . . 1 1 . . . . 1 1 1 1 1 1 1 1 1 1 1 1 1 1 . . Unknown Exits Taken 12 | 1 1 . 1 1 . . 1 . . 1 1 . . 1 1 1 1 . . . . . . . . . . . . . . 1 . Scrap Searched 18 | . . 1 . 2 . . . . 2 3 . 2 . . . . . . 2 2 . 4 . . . . . . . . . . . Spaces Dug 281 | . . 14 . . 13 13 13 25 2 3 6 1 10 1 . . 4 2 1 . . 8 8 15 . 25 12 11 36 40 10 7 1 Terrain Destroyed 7476 | . 5 29 . 2 95 58 15 45 93 66 7 11 30 24 2 8 171 37 9 2 . 36 25 109 . 76 30 24 84 97 15 2204 4067 Melee 41 | . . . . . . . . 20 . . 6 1 9 1 . . 4 . . . . . . . . . . . . . . . . Projectile 6425 | . 1 1 . 2 40 . 4 14 7 11 1 7 4 1 2 8 2 12 9 2 . 36 25 39 . 37 30 24 84 87 15 2125 3795 AOE 1009 | . 4 28 . . 55 58 11 11 86 55 . 3 17 22 . . 165 25 . . . . . 69 . 39 . . . 10 . 79 272 Terrain Rammed . | . . . . . . . . . . . . . . . . . . . . . . . . . . . . . . . . . . Walls Destroyed . | . . . . . . . . . . . . . . . . . . . . . . . . . . . . . . . . . . Machines Disabled . | . . . . . . . . . . . . . . . . . . . . . . . . . . . . . . . . . . Actions | -11 -10 -10 -10 -9 -8 -8 -8 -7 -7 -7 -7 -6 -6 -6 -6 -6 -6 -5 -5 -5 -5 -4 -4 -4 -4 -3 -3 -3 -2 -2 -1 -1 -1 --------- Run | Yrd Mat Min Exi Min Mat Gar Mat Fac Low Low Dat Pro Fac Ext Cet Arc Hub Fac Upp Upp Zhi Pro Fac Arm Lab Res Qua Sec Res Tes Acc Com Ac0 Total 27193 | 111 741 903 558 1105 997 1146 182 1326 939 924 322 725 503 1900 277 362 187 544 638 582 196 1087 357 668 258 438 703 922 674 526 184 3515 2693 Wait 3273 | . 110 123 39 392 73 45 20 184 14 26 . 111 56 227 69 110 12 105 26 76 . 156 63 34 28 70 163 178 46 86 12 488 131 Move 20185 | 78 547 747 481 670 732 818 138 939 810 849 231 576 332 1204 160 187 155 374 592 496 162 899 197 400 172 274 363 612 494 334 152 2808 2202 Hop . | . . . . . . . . . . . . . . . . . . . . . . . . . . . . . . . . . . Pick Up 308 | 1 22 8 1 9 19 13 1 18 7 2 10 5 12 23 3 6 1 10 2 . 6 . 11 24 6 9 13 15 6 4 1 20 20 Fast Attach 197 | 9 5 . 1 1 4 5 . 3 . 4 6 5 14 19 2 6 1 8 . 4 7 . 4 12 6 3 11 12 4 3 1 14 23 Attach 147 | . 1 . . 1 6 8 . 6 6 1 9 3 8 6 1 3 3 9 1 . 2 . 3 7 2 3 9 9 2 1 1 12 24 Detach 57 | 2 2 . . . 1 2 . . . . . . 1 6 . . . 2 . . 1 . . 3 1 . 9 4 . . 1 4 18 Swap 388 | . 12 3 . 2 27 31 5 42 9 2 4 5 14 24 4 2 2 10 4 2 2 4 14 24 5 15 26 18 20 21 5 10 20 Drop 404 | . 10 7 2 10 30 21 1 17 5 3 7 1 7 38 7 10 3 7 3 4 12 . 12 31 11 9 28 18 6 7 . 36 41 Fire 1621 | 21 30 14 . 19 104 125 16 92 54 35 35 10 33 113 26 38 4 18 10 . . 28 50 91 19 54 77 50 95 69 9 68 214 Melee 146 | . . . 2 . . . . 20 . . 20 8 17 47 5 . 6 . . . 4 . . . 8 . 3 6 . . . . . Ram . | . . . . . . . . . . . . . . . . . . . . . . . . . . . . . . . . . . Kick 6 | . . . . . . . . . . . . . 5 1 . . . . . . . . . . . . . . . . . . . Crush 21 | . 2 1 . 1 1 . 1 . . 1 . . . 3 . . . 1 . . . . 3 1 . 1 1 . 1 1 2 . . Escape Stasis 40 | . . . . . . 14 . 4 . . . . . 12 . . . . . . . . . . . . . . . . . 10 . Rewire 393 | . . . 32 . . 64 . . 34 . . . . 177 . . . . . . . . . 41 . . . . . . . 45 . Trap 7 | . . . . . . . . 1 . 1 . 1 4 . . . . . . . . . . . . . . . . . . . . Miscellaneous . | . . . . . . . . . . . . . . . . . . . . . . . . . . . . . . . . . . Route ------- -11/Scrapyard -10/Materials (discovered 5 exits: [*Mat x3] / *Min x2) -10/Mines (discovered 4 exits: [*Mat x2] / *Exi / [*Sub]) -10/Exiles (discovered 2 exits: *Min x2) -9/Mines (discovered 2 exits: *Mat x2) -8/Materials (discovered 2 exits: *Fac / Gar) -8/Garrison (discovered 3 exits: *Mat x3) -8/Materials -7/Factory (discovered 2 exits: *Fac / *Low) -7/Lower Caves -7/Lower Caves (discovered 2 exits: *Fac / *Dat) -7/Data Miner -6/Proximity Caves -6/Factory -6/Extension (discovered 2 exits: *Fac / *Cet) -6/Cetus (discovered 2 exits: *Fac / [*Arc]) -6/Archives (discovered 3 exits: *Fac / *Hub x2) -6/Hub_04(d) (discovered 2 exits: *Fac x2) -5/Factory (discovered 2 exits: *Upp x2) -5/Upper Caves -5/Upper Caves (discovered 2 exits: *Fac / *Zhi) -5/Zhirov -4/Proximity Caves -4/Factory -4/Armory -4/Lab -3/Research -3/Quarantine (discovered 3 exits: *Res / *Sec / [*Frg]) -3/Section 7 -2/Research -2/Testing -1/Access (discovered 2 exits: Sur / *Com) -1/Command (discovered 3 exits: *Sur x2 / [*Ac0]) -1/Access_0 0b11 Command History --------- Turn | Location | Event 39 | -11/Scrapyard | Discovered new exit (range 15) 197 | -11/Scrapyard | Entered Materials 304 | -10/Materials | Build established: Mutant 336 | -10/Materials | Discovered new exit (range 6) 452 | -10/Materials | Discovered new exit (range 8) 500 | -10/Materials | Central database locked down 654 | -10/Materials | Discovered new exit (range 5) 697 | -10/Materials | Derelicts attacked the area 1003 | -10/Materials | Discovered new exit (range 11) 1090 | -10/Materials | Discovered new exit (range 11) 1695 | -10/Materials | Entered Mines 1792 | -10/Mines | A weapon hastily lodged in a ceiling crevice suddenly fell to the ground 1979 | -10/Mines | Discovered new exit (range 7) 2672 | -10/Mines | Identified exit to Exiles 2695 | -10/Mines | Discovered new exit (range 6) 2733 | -10/Mines | Found a damaged Exp. Sensor Array with a note attached 2741 | -10/Mines | Found Prototype Device 3011 | -10/Mines | Discovered new exit (range 6) 3275 | -10/Mines | Met a Derelict who couldn't figure out how to use a Trap Extractor 3978 | -10/Mines | Assisted by bots powering up and referring to "LRC-V3" 4243 | -10/Mines | Deemed a non-threat by the Exiles lab entrance 4263 | -10/Mines | Entered Exiles 4263 | -10/Exiles | Found Exiles lab destroyed 4263 | -10/Exiles | Accompanied by 3 allies 4311 | -10/Exiles | Discovered new exit (range 15) 4664 | -10/Exiles | Learned location of Zion (-6) 4771 | -10/Exiles | Build established: Commander-Mutant 4923 | -10/Exiles | Opened EX-Vault 4937 | -10/Exiles | Found Superbattery 5804 | -10/Exiles | Discovered new exit (range 12) 5881 | -10/Exiles | Entered Mines 5881 | -9/Mines | Accompanied by 7 allies 5888 | -9/Mines | Received a Rocket Launcher from a helpful Derelict 5921 | -9/Mines | Discovered new exit (range 9) 6733 | -9/Mines | Lost 4 allies 6930 | -9/Mines | Learned Materials trap positions 6977 | -9/Mines | Excavation squad dispatched 6977 | -9/Mines | A large section of the Mines collapsed 6992 | -9/Mines | Build established: Mutant 7396 | -9/Mines | Learned Materials security intel 7721 | -9/Mines | Met a Derelict shopkeep closing up shop 8096 | -9/Mines | Discovered new exit (range 11) 8413 | -9/Mines | Entered Materials 8413 | -8/Materials | Accompanied by 1 ally 8413 | -8/Materials | Evolved 4 slots: Propulsion x2, Utility x2 8414 | -8/Materials | Loaded intel: 19 trap records 9422 | -8/Materials | Repaired Reactive Plating 9633 | -8/Materials | Build established: Scavenger-Mutant 9774 | -8/Materials | Discovered new exit (range 5) 10628 | -8/Materials | Identified exit to Garrison 10628 | -8/Materials | Entered Garrison 10784 | -8/Garrison | Triggered checkpoint 10785 | -8/Garrison | Build established: Mutant 10848 | -8/Garrison | Garrison Relay disabled 10968 | -8/Garrison | Triggered checkpoint 11146 | -8/Garrison | Identified Exp. Sensor Array 11292 | -8/Garrison | Triggered checkpoint 11320 | -8/Garrison | Garrison Relay disabled 11679 | -8/Garrison | Discovered new exit (range 11) 11737 | -8/Garrison | Garrison Relay disabled 12088 | -8/Garrison | Build established: Commander-Mutant 12128 | -8/Garrison | Triggered checkpoint 12162 | -8/Garrison | Triggered checkpoint 12292 | -8/Garrison | Spotted B-75 Beast 12325 | -8/Garrison | Core integrity fell below 50% 12343 | -8/Garrison | Lost 3 allies 12349 | -8/Garrison | Destroyed B-75 Beast 12367 | -8/Garrison | Discovered new exit (range 12) 12376 | -8/Garrison | Lost 4 parts (2n2u) 12466 | -8/Garrison | Triggered checkpoint 12489 | -8/Garrison | Garrison Relay disabled 12619 | -8/Garrison | Build established: Scavenger-Mutant 12764 | -8/Garrison | Triggered checkpoint 13021 | -8/Garrison | Discovered new exit (range 8) 13067 | -8/Garrison | Entered Materials 13067 | -8/Materials | Accompanied by 1 ally 13367 | -8/Materials | Discovered new exit (range 22) 13467 | -8/Materials | First assault squad dispatched 13475 | -8/Materials | Entered Factory 13475 | -7/Factory | Evolved 2 slots: Propulsion x1, Utility x1 14061 | -7/Factory | Fabricated Adv. Coolant Injector? 14586 | -7/Factory | Discovered new exit (range 8) 14618 | -7/Factory | Identified exit to Factory 14715 | -7/Factory | Repaired Battle Cannon 14777 | -7/Factory | Repaired Broken Adv. Assault Cannon 16116 | -7/Factory | Discovered new exit (range 6) 16124 | -7/Factory | Identified exit to Lower Caves 16189 | -7/Factory | Entered Lower Caves 16190 | -7/Lower Caves | Encountered a Warlord checkpoint 16195 | -7/Lower Caves | Met a Warlord Commander 16196 | -7/Lower Caves | Learned location of Warlord (-4) 16197 | -7/Lower Caves | Warlord Commander delivered Encrypted Comm Array 16206 | -7/Lower Caves | Found Encrypted Comm Array 16842 | -7/Lower Caves | Build established: Scavenger-Skirmisher 17165 | -7/Lower Caves | Build established: Scavenger-Mutant 17406 | -7/Lower Caves | Identified exit to Lower Caves 17640 | -7/Lower Caves | Build established: Mutant 17748 | -7/Lower Caves | Attracted the attention of an 0b10 outpost 17810 | -7/Lower Caves | Destroyed 7 combat bots 17811 | -7/Lower Caves | Lost 4 parts (1p2n1w) 18295 | -7/Lower Caves | Found Prototype Device 18560 | -7/Lower Caves | Entered another Lower Caves area 18560 | -7/Lower Caves | Accompanied by 2 allies 18561 | -7/Lower Caves | Encountered a Warlord checkpoint 18580 | -7/Lower Caves | Learned Factory stockpile data 18817 | -7/Lower Caves | Discovered exit to Factory (range 10) 19233 | -7/Lower Caves | System corruption reached 10% 19803 | -7/Lower Caves | Learned Factory security intel 20545 | -7/Lower Caves | Discovered new exit (range 8) 20616 | -7/Lower Caves | Build established: Scavenger-Mutant 21431 | -7/Lower Caves | Entered Data Miner 21433 | -7/Data Miner | Discovered new exit (range 6) 21473 | -7/Data Miner | Met Data Miner 21516 | -7/Data Miner | Learned location of Section 7 (-3) 21516 | -7/Data Miner | Acquired the access code to Warlord's prototype stash 21549 | -7/Data Miner | Received God Mode back door access code from Data Miner 21760 | -7/Data Miner | Interfaced with the Data Conduit 22039 | -7/Data Miner | Core integrity fell below 50% 22073 | -7/Data Miner | Lost 13 parts (5n6u2w) 22301 | -7/Data Miner | Entered Proximity Caves 22836 | -6/Proximity Caves | Learned 4 Factory zone layouts 23627 | -6/Proximity Caves | Discovered exit to Factory (range 9) 23891 | -6/Proximity Caves | Entered Factory 23891 | -6/Factory | Evolved 2 slots: Power x1, Propulsion x1 23895 | -6/Factory | Loaded intel: 267 machine locations 24170 | -6/Factory | Discovered new exit (range 13) 24199 | -6/Factory | Build established: Scavenger-Assassin 24459 | -6/Factory | Garrison activated, responded to threat 24503 | -6/Factory | Lost 6 parts (1p1n3u1w) 24557 | -6/Factory | System corruption reached 10% 24643 | -6/Factory | Lost 7 parts (2p1n1u3w) 24807 | -6/Factory | Identified exit to Extension 24809 | -6/Factory | Entered Extension 24810 | -6/Extension | Loaded intel: 39 machine locations 24855 | -6/Extension | Build established: Scavenger-Mutant 25334 | -6/Extension | Disrupted transfer network 25445 | -6/Extension | Core integrity fell below 50% 25484 | -6/Extension | Lost 5 parts (1p4n) 25486 | -6/Extension | Spotted B-75 Beast 25564 | -6/Extension | Identified Heart of Steel 25588 | -6/Extension | Rescued a captive Derelict 25589 | -6/Extension | Rescued a captive Derelict 25621 | -6/Extension | Rescued a captive Derelict 25622 | -6/Extension | Rescued a captive Derelict 25759 | -6/Extension | Rescued a captive Derelict 25854 | -6/Extension | Rescued a captive Derelict 25857 | -6/Extension | Rescued a captive Derelict 26566 | -6/Extension | Heart of Steel transformed into Warbot 26756 | -6/Extension | Allies destroyed B-75 Beast 26767 | -6/Extension | Spotted B-75 Beast 26782 | -6/Extension | Allies destroyed B-75 Beast 26962 | -6/Extension | Rescued a captive Derelict 27032 | -6/Extension | Lost 3 allies 27182 | -6/Extension | Rescued a captive Derelict 27263 | -6/Extension | Rescued a captive Derelict 27264 | -6/Extension | Rescued a captive Derelict 27464 | -6/Extension | Discovered new exit (range 10) 27466 | -6/Extension | Discovered new exit (range 6) 27625 | -6/Extension | Build established: Commander-Mutant 27959 | -6/Extension | First assault squad dispatched 27959 | -6/Extension | Entered Cetus 27959 | -6/Cetus | Accompanied by 16 allies (Warbot) 27960 | -6/Cetus | Loaded intel: 24 machine locations 27987 | -6/Cetus | Spotted Cetus Guard 27992 | -6/Cetus | Spotted Cetus Guard 27992 | -6/Cetus | Spotted Cetus Guard 27992 | -6/Cetus | Spotted Cetus Guard 27999 | -6/Cetus | Destroyed Cetus Guard 28000 | -6/Cetus | Allies destroyed Cetus Guard 28006 | -6/Cetus | Allies destroyed Cetus Guard 28018 | -6/Cetus | Allies destroyed Cetus Guard 28042 | -6/Cetus | Lost 10 allies 28113 | -6/Cetus | Found a strange terminal 28142 | -6/Cetus | Discovered new exit (range 16) 28210 | -6/Cetus | Spotted Cetus Guard 28210 | -6/Cetus | Spotted Cetus Guard 28214 | -6/Cetus | Spotted Cetus Guard 28219 | -6/Cetus | Spotted Cetus Guard 28223 | -6/Cetus | Destroyed Cetus Guard 28238 | -6/Cetus | Destroyed Cetus Guard 28244 | -6/Cetus | Allies destroyed Cetus Guard 28254 | -6/Cetus | Destroyed Cetus Guard 28262 | -6/Cetus | Build established: Scavenger-Mutant 28266 | -6/Cetus | Lost 3 allies 28266 | -6/Cetus | Discovered new exit (range 16) 28277 | -6/Cetus | Met Revision 17 28387 | -6/Cetus | Entered Archives 28387 | -6/Archives | Accompanied by 6 allies (Warbot) 28388 | -6/Archives | Loaded intel: 8 machine locations 28444 | -6/Archives | Discovered new exit (range 16) 28684 | -6/Archives | Discovered new exit (range 16) 28727 | -6/Archives | Discovered new exit (range 15) 28934 | -6/Archives | Entered Hub_04(d) 28934 | -6/Hub_04(d) | Accompanied by 5 allies (Warbot) 28935 | -6/Hub_04(d) | Loaded intel: 107 machine locations 28955 | -6/Hub_04(d) | Discovered new exit (range 6) 28997 | -6/Hub_04(d) | Discovered new exit (range 4) 29101 | -6/Hub_04(d) | Network Hub disabled 29188 | -6/Hub_04(d) | Network Hub disabled 29188 | -6/Hub_04(d) | Spotted Lightning 29188 | -6/Hub_04(d) | Spotted Lightning 29188 | -6/Hub_04(d) | Spotted Lightning 29198 | -6/Hub_04(d) | Lost 4 allies 29203 | -6/Hub_04(d) | Core integrity fell below 20% 29229 | -6/Hub_04(d) | Entered Factory 29229 | -5/Factory | Evolved 2 slots: Utility x1, Weapon x1 29230 | -5/Factory | Loaded intel: 288 machine locations 29236 | -5/Factory | Discovered new exit (range 10) 29256 | -5/Factory | Lost 3 parts (2n1w) 29314 | -5/Factory | Identified exit to Upper Caves 29499 | -5/Factory | Lost 4 parts (2p1n1u) 29534 | -5/Factory | Central database locked down 29753 | -5/Factory | Build established: Scavenger-Tank 29811 | -5/Factory | Fabricated Arm. Medium Treads? 29871 | -5/Factory | Fabricated Lrn. Missile Launcher? 30015 | -5/Factory | Discovered exit to Upper Caves (range 6) 30040 | -5/Factory | Entered Upper Caves 30084 | -5/Upper Caves | Learned Factory stockpile data 30095 | -5/Upper Caves | Found Alien Artifact 30976 | -5/Upper Caves | Discovered new exit (range 7) 31009 | -5/Upper Caves | Spotted B-75 Beast 31016 | -5/Upper Caves | Encountered a Warlord checkpoint 31046 | -5/Upper Caves | Identified exit to Upper Caves 31060 | -5/Upper Caves | Entered another Upper Caves area 31091 | -5/Upper Caves | Discovered new exit (range 13) 31099 | -5/Upper Caves | Learned location of 1 exit from Proximity Caves 31862 | -5/Upper Caves | Discovered new exit (range 3) 31865 | -5/Upper Caves | Identified exit to Zhirov 31951 | -5/Upper Caves | Entered Zhirov 31951 | -5/Zhirov | Discovered new exit (range 3) 31953 | -5/Zhirov | Identified exit to Proximity Caves 31982 | -5/Zhirov | Met Zhirov 32028 | -5/Zhirov | Zhirov requested help retrieving the SGEMP Prototype 32052 | -5/Zhirov | Found Alien Artifact 32052 | -5/Zhirov | Identified Integrated Reactor 32052 | -5/Zhirov | Installed Integrated Reactor, increased core energy generation (+10) 32076 | -5/Zhirov | Found Alien Artifact 32255 | -5/Zhirov | Entered Proximity Caves 32256 | -4/Proximity Caves | Identified exit to Factory 32936 | -4/Proximity Caves | Learned location of 1 exit from Proximity Caves 33953 | -4/Proximity Caves | Entered Factory 33953 | -4/Factory | Evolved 2 slots: Utility x2 33955 | -4/Factory | Loaded intel: 326 machine locations 34003 | -4/Factory | Repaired Huge Storage Unit 34584 | -4/Factory | Discovered new exit (range 16) 34597 | -4/Factory | Destroyed 9 combat bots 34621 | -4/Factory | Identified exit to Armory 34623 | -4/Factory | Entered Armory 34624 | -4/Armory | Loaded intel: 85 machine locations 34856 | -4/Armory | Joined by Warlord Pyro squad 34931 | -4/Armory | Build established: Tank 35187 | -4/Armory | Destroyed 9 combat bots 35199 | -4/Armory | Assembled infested ambush trap array 35260 | -4/Armory | Lost 3 parts (1n1u1w) 35267 | -4/Armory | Destroyed 9 combat bots 35596 | -4/Armory | Identified Transdimensional Reconstructor 35596 | -4/Armory | Warped through subspace to slip node 35596 | -4/Armory | Discovered new exit (range 1) 35596 | -4/Armory | Identified exit to Lab 35671 | -4/Armory | Joined by Warlord Muscle squad 35673 | -4/Armory | Joined by Warlord Pyro squad 35765 | -4/Armory | Found Launcher Loader 35838 | -4/Armory | Intercept squad dispatched 35838 | -4/Armory | Entered Lab 35838 | -4/Lab | Discovered new exit (range 9) 35849 | -4/Lab | Identified exit to Research 35854 | -4/Lab | Hidden lab's door opened automatically 35854 | -4/Lab | Sensor layout match revealed 35855 | -4/Lab | Gained access to the hidden lab's interior 35877 | -4/Lab | Detected by scanners 35883 | -4/Lab | Confronted by A5 35936 | -4/Lab | System corruption reached 10% 35956 | -4/Lab | Destroyed A5 36010 | -4/Lab | Found Alien Artifact 36010 | -4/Lab | Identified Core Regenerator 36010 | -4/Lab | Used Core Regenerator, restored core integrity (+287) 36019 | -4/Lab | Found Integrated Reactor 36019 | -4/Lab | Installed Integrated Reactor, increased core energy generation (+10) 36029 | -4/Lab | Found Transdimensional Reconstructor 36062 | -4/Lab | Found Prototype Device 36062 | -4/Lab | Identified AEGIS Remote Shield 36068 | -4/Lab | Found Prototype Hackware 36075 | -4/Lab | Found Prototype Energy Gun 36075 | -4/Lab | Identified Hyp. EM Gauss Rifle 36084 | -4/Lab | Found Prototype Energy Cannon 36104 | -4/Lab | Decrypted terminal 36104 | -4/Lab | Acquired modification code for an L2 power cell 36136 | -4/Lab | Decrypted terminal 36138 | -4/Lab | Found Alien Artifact 36138 | -4/Lab | Identified LC Capacitor 36202 | -4/Lab | Found Alien Artifact 36225 | -4/Lab | Entered Research 36225 | -3/Research | Evolved 2 slots: Utility x2 36226 | -3/Research | Loaded intel: 116 machine locations 36425 | -3/Research | Revision forces began assault on 0b10 36472 | -3/Research | Met up with Revision 17++ 36855 | -3/Research | Discovered new exit (range 9) 36864 | -3/Research | Identified exit to Quarantine 36867 | -3/Research | Entered Quarantine 36868 | -3/Quarantine | Loaded intel: 64 machine locations 37104 | -3/Quarantine | Found Alien Impact Weapon 37208 | -3/Quarantine | Found Alien Energy Cannon 37208 | -3/Quarantine | Identified Core Cannon 37233 | -3/Quarantine | Discovered new exit (range 11) 37276 | -3/Quarantine | Scanned by Researcher 37392 | -3/Quarantine | Identified exit to Research 37414 | -3/Quarantine | Found Alien Artifact 37414 | -3/Quarantine | Identified Phase Redirector 37434 | -3/Quarantine | Found Alien Artifact 37459 | -3/Quarantine | Cryocooling Duct disabled 37474 | -3/Quarantine | Ambient heat levels rising (+20) 37474 | -3/Quarantine | Non-combat units ordered to evacuate 37519 | -3/Quarantine | Identified Core Stripper 37549 | -3/Quarantine | Spotted Fortress 37561 | -3/Quarantine | Destroyed Fortress 37575 | -3/Quarantine | Found Vortex Chain Reactor 37586 | -3/Quarantine | Found Prototype Protection 37586 | -3/Quarantine | Identified Centrium Heavy Armor Plating 37591 | -3/Quarantine | Found Exp. EM Shield 37607 | -3/Quarantine | Found Thermal Barrier 37610 | -3/Quarantine | Found Prototype Device 37610 | -3/Quarantine | Identified Exp. Force Field 37618 | -3/Quarantine | Identified Potential Cannon 37681 | -3/Quarantine | Intercept squad dispatched 37693 | -3/Quarantine | Spotted Tracker 37696 | -3/Quarantine | Destroyed Tracker 37739 | -3/Quarantine | Spotted Combat Programmer 37744 | -3/Quarantine | Destroyed Combat Programmer 37766 | -3/Quarantine | Found Prototype Device 37766 | -3/Quarantine | Identified Exp. Phase Shifter 37828 | -3/Quarantine | Discovered new exit (range 5) 37828 | -3/Quarantine | Discovered new exit (range 6) 37832 | -3/Quarantine | Identified exit to Section 7 37837 | -3/Quarantine | Entered Section 7 37838 | -3/Section 7 | Loaded intel: 123 machine locations 38182 | -3/Section 7 | Found Alien Artifact 38182 | -3/Section 7 | Identified Integrity Redistributor 38182 | -3/Section 7 | Used Integrity Redistributor, redistributed integrity from core (-491) 38183 | -3/Section 7 | Core integrity fell below 50% 38191 | -3/Section 7 | Discovered exit to Research (range 8) 38203 | -3/Section 7 | Identified Dimensional Node Initializer 38203 | -3/Section 7 | Initialized slip node 38241 | -3/Section 7 | Spotted S7 Guard 38264 | -3/Section 7 | Spotted Executioner 38264 | -3/Section 7 | Spotted Executioner 38305 | -3/Section 7 | Destroyed Executioner 38308 | -3/Section 7 | Destroyed Executioner 38390 | -3/Section 7 | Found Alien Energy Cannon 38391 | -3/Section 7 | Installed L-Cannon capacitor 38392 | -3/Section 7 | Identified Quantum Router 38484 | -3/Section 7 | Found Transdimensional Reconstructor 38666 | -3/Section 7 | Spotted B-99 Colossus 38693 | -3/Section 7 | Build established: Hacker-Tank 38735 | -3/Section 7 | Found Alien Artifact 38738 | -3/Section 7 | Found Alien Artifact 38741 | -3/Section 7 | Found Alien Artifact 38792 | -3/Section 7 | Found Alien Artifact 38792 | -3/Section 7 | Identified LRC Matter Compressor 38792 | -3/Section 7 | Installed LRC Matter Compressor, increased matter storage capacity (+125) 38801 | -3/Section 7 | Found Alien Artifact 38801 | -3/Section 7 | Identified LRC Energy Well 38801 | -3/Section 7 | Installed LRC Energy Well, increased energy storage capacity (+250) 38804 | -3/Section 7 | Found Alien Artifact 38804 | -3/Section 7 | Identified LRC Armor 38804 | -3/Section 7 | Installed LRC Armor, increased core integrity (+250) 38980 | -3/Section 7 | Destroyed B-99 Colossus 39151 | -3/Section 7 | Intercept squad dispatched 39167 | -3/Section 7 | Spotted Tracker 39168 | -3/Section 7 | Warped through subspace to slip node 39171 | -3/Section 7 | Entered Research 39171 | -2/Research | Evolved 2 slots: Utility x1, Weapon x1 39172 | -2/Research | Identified exit to Testing 39173 | -2/Research | Loaded intel: 115 machine locations 39400 | -2/Research | Spotted B-90 Cyclops 39676 | -2/Research | Identified Core Reset Matrix (x3) 39676 | -2/Research | Identified Subatomic Replicator 39757 | -2/Research | Intercept squad dispatched 39787 | -2/Research | Spotted Tracker 39788 | -2/Research | Spotted Tracker 39794 | -2/Research | Destroyed Tracker 39802 | -2/Research | Destroyed Tracker 39872 | -2/Research | Spotted Combat Programmer 39877 | -2/Research | Spotted Combat Programmer 39884 | -2/Research | Destroyed Combat Programmer 39897 | -2/Research | Destroyed Combat Programmer 40251 | -2/Research | Entered Testing 40252 | -2/Testing | Loaded intel: 71 machine locations 40309 | -2/Testing | Protovariant out of control (PD-7SW9BSLOCF) 40309 | -2/Testing | Unleashed a protovariant (PD-7SW9BSLOCF) 40380 | -2/Testing | Found Prototype Device 40380 | -2/Testing | Identified 2N-1CE's Frost Array 40523 | -2/Testing | Found Prototype Launcher 40595 | -2/Testing | Spotted Striker 40613 | -2/Testing | Destroyed Striker 40625 | -2/Testing | Spotted Striker 40639 | -2/Testing | Destroyed Striker 40670 | -2/Testing | Identified Z-bomb Delivery System 40680 | -2/Testing | Spotted Alpha 7 40707 | -2/Testing | Destroyed Alpha 7 40743 | -2/Testing | Stole the SGEMP Prototype 40905 | -2/Testing | Discovered new exit (range 16) 40981 | -2/Testing | Found Prototype Energy Cannon 40981 | -2/Testing | Identified Cld. Nova Cannon 41031 | -2/Testing | Build established: Tank 41097 | -2/Testing | Identified exit to Access 41099 | -2/Testing | Entered Access 41099 | -1/Access | Evolved 2 slots: Power x1, Weapon x1 41100 | -1/Access | Loaded intel: 112 machine locations 41100 | -1/Access | Delivered the SGEMP Prototype to Zhirov 41100 | -1/Access | Zhirov transferred Access data 41101 | -1/Access | Loaded intel: 112 machine locations 41101 | -1/Access | Loaded intel: 55 trap records 41101 | -1/Access | Identified exit to Surface 41101 | -1/Access | Discovered exit to Surface (range 180) 41101 | -1/Access | Identified exit to Command 41101 | -1/Access | Discovered exit to Command (range 128) 41276 | -1/Access | Spotted B-99 Colossus 41286 | -1/Access | Zhirov warped through subspace 41389 | -1/Access | Entered Command 41390 | -1/Command | Loaded intel: 63 machine locations 41481 | -1/Command | Fired L-Cannon 41481 | -1/Command | 0b10 Conduit disabled 41484 | -1/Command | MAIN.C activated Command garrisons 41490 | -1/Command | Fired L-Cannon 41491 | -1/Command | Zhirov used SGEMP to disable MAIN.C 41491 | -1/Command | Fired L-Cannon 41491 | -1/Command | Murdered Zhirov 41501 | -1/Command | Fired L-Cannon 41501 | -1/Command | Murdered Svarog 41523 | -1/Command | Fired L-Cannon 41533 | -1/Command | Fired L-Cannon 41533 | -1/Command | Destroyed MAIN.C 41557 | -1/Command | Found Adv. Powered Armor 41564 | -1/Command | Found Transdimensional Reconstructor 41567 | -1/Command | Found Zhirov Special 41588 | -1/Command | Discovered exit to Surface (range 115) 41588 | -1/Command | Discovered exit to Surface (range 119) 41588 | -1/Command | Extracted map data and part IDs from MAIN.C's data core 41601 | -1/Command | Found Zero-point Reactor 41761 | -1/Command | All MAIN.C guards destroyed 42677 | -1/Command | Found Exp. System Purifier 42700 | -1/Command | Found Hvy. Regenerative Plating 44027 | -1/Command | Phase Generator disabled 44884 | -1/Command | Found Singularity Reactor 45734 | -1/Command | Found Exp. Targeting Computer 46196 | -1/Command | Found AEGIS Remote Shield 46635 | -1/Command | Found Thermal Barrier 46880 | -1/Command | Found Hvy. Reactive Plating 47168 | -1/Command | Build established: Scavenger-Tank 47195 | -1/Command | Warped through subspace to slip node 47195 | -1/Command | Discovered new exit (range 4) 47199 | -1/Command | Found Exp. Core Analyzer 47205 | -1/Command | Entered Access_0 47206 | -1/Access_0 | Loaded intel: 45 machine locations 47206 | -1/Access_0 | Met Architect 47206 | -1/Access_0 | Hacked A8 with code downloaded from Data Conduit 47209 | -1/Access_0 | Destroyed A8 47214 | -1/Access_0 | Architect warped through subspace 47255 | -1/Access_0 | Architect warped through subspace 47260 | -1/Access_0 | Fired L-Cannon 47260 | -1/Access_0 | Singularity Gate disabled 47260 | -1/Access_0 | Singularity Gate disabled 47270 | -1/Access_0 | Fired L-Cannon 47280 | -1/Access_0 | Fired L-Cannon 47280 | -1/Access_0 | Subspace Access Node disabled 47317 | -1/Access_0 | Fired L-Cannon 47317 | -1/Access_0 | Subspace Access Node disabled 47327 | -1/Access_0 | Fired L-Cannon 47327 | -1/Access_0 | Subspace Access Node disabled 47337 | -1/Access_0 | Fired L-Cannon 47377 | -1/Access_0 | Architect warped through subspace 47382 | -1/Access_0 | Fired L-Cannon 47392 | -1/Access_0 | Fired L-Cannon 47402 | -1/Access_0 | Fired L-Cannon 47402 | -1/Access_0 | Subspace Access Node disabled 47431 | -1/Access_0 | Destroyed Architect 47435 | -1/Access_0 | Used Subatomic Replicator to replicate Linked Autogun 47526 | -1/Access_0 | Found Exp. Weapon Cycler 47574 | -1/Access_0 | Spotted Enhanced Programmer 47578 | -1/Access_0 | Destroyed Enhanced Programmer 47703 | -1/Access_0 | A6 warped into view 47728 | -1/Access_0 | Destroyed A6 48083 | -1/Access_0 | Spotted Enhanced Programmer 48094 | -1/Access_0 | Destroyed Enhanced Programmer 48505 | -1/Access_0 | Found Exp. Powered Armor 48538 | -1/Access_0 | Destroyed A2 48546 | -1/Access_0 | Extracted Singularity Gate Test 138-C access codes from A2's data core 48553 | -1/Access_0 | Found Prototype Device 48553 | -1/Access_0 | Identified ST Field Compressor 48700 | -1/Access_0 | Found Prototype Device 48700 | -1/Access_0 | Identified Desublimator 48715 | -1/Access_0 | Found Exp. Weapon Cycler 48799 | -1/Access_0 | A4 warped into view 48818 | -1/Access_0 | Destroyed A4 48842 | -1/Access_0 | Found Exp. Powered Armor 48940 | -1/Access_0 | Fired L-Cannon 48967 | -1/Access_0 | Fired L-Cannon 49323 | -1/Access_0 | Spotted Enhanced Programmer 49335 | -1/Access_0 | Destroyed Enhanced Programmer 49369 | -1/Access_0 | Spotted Enhanced Programmer 49386 | -1/Access_0 | Destroyed Enhanced Programmer 49532 | -1/Access_0 | Spotted Enhanced Programmer 49539 | -1/Access_0 | Destroyed Enhanced Programmer 49688 | -1/Access_0 | Found Integrated Mediator 49688 | -1/Access_0 | Installed Integrated Mediator, increased core attachment efficiency 49756 | -1/Access_0 | Found Sigix Broadsword 49938 | -1/Access_0 | A3 warped into view 49965 | -1/Access_0 | Destroyed A3 51115 | -1/Access_0 | Found Core Expander 51115 | -1/Access_0 | Installed Core Expander, added new Propulsion slot 51819 | -1/Access_0 | Warped through subspace to slip node 51819 | -1/Access_0 | Discovered exit to Surface (range 8) 51821 | -1/Access_0 | Found Hpw. Transdimensional Reconstructor 51821 | -1/Access_0 | Warped through subspace to slip node 51843 | -1/Access_0 | Fired L-Cannon 51853 | -1/Access_0 | Fired L-Cannon 51865 | *** | Establishing 0b11! Last Messages --------------- 51675_ JTNQUMKRJ/FW5WG,KMAP4RXUIT ED5#5VH6 51706_ Acquired 21 matter. 51713_ B#C7/FBD>#,FOTCCUYQ%WD|RZ< =&VT 51843_ Beam penetrates Earth. 51843_ Beam penetrates Wall. 51853_ Beam penetrates Dimensional Slip Node. 51853_ Dimensional Slip Node implodes. 51853_ Beam penetrates Wall. 51853_ Beam penetrates Earth. 51855_ The unstable cave ceiling collapses. Map ----- +----------------------------------------------------+ | | | | | | | | | | | | | | | | | | | | | | | | | | | | | | | | | ?????????????????????????????????????????????????? | | ?????????????????????????????????????????????????? | | ?????????????????????????????????????????????????? | | ?????????????????????????????????????????????????? | | ?????????????????????????????????????????????????? | | ?????????????????????????????????????????????????? | | ????????????????????????###??????????????????????? | | ???????????????????????## ##?????????????????????? | | ???????????????????????# #?????????????????????? | | ???????????????????????# @ #?????????????????????? | | ??????????????????????## #?????????????????????? | | ?????????????????????? #?????????????????????? | | ????????????????????? ?????????????????????? | | ???????????????????? ????????????????????? | | ??????????????????# ???????????????????? | | ??????????????????# # ???????????????????? | | ??????????????????# #??????????????????? | | ??????????????????# ## #??????????????????? | | ??????????????????# #??????????????????? | | ??????????????????## ## ##??????????????????? | | ???????????????????# # #???????????????????? | | ????????????????????## #???????????????????? | | ?????????????????????### "" #???????????????????? | | ????????????????????????;????#???????????????????? | | ???????????????????????? ????????????????????????? | | ?????????????????????????????????????????????????? | | ?????????????????????????????????????????????????? | | ?????????????????????????????????????????????????? | | ?????????????????????????????????????????????????? | | ?????????????????????????????????????????????????? | | ?????????????????????????????????????????????????? | | ?????????????????????????????????????????????????? | | ?????????????????????????????????????????????????? | | ?????????????????????????????????????????????????? | +----------------------------------------------------+ Best States ------------- Heat Dissipation 190 Energy Generation 95 Energy Capacity 3450 Matter Stores 535 Matter Capacity 625 Sight Range 22 Robot Scan Range 20 Terrain Scan Range 20 Terrain Scan Density 85 Jamming Range 16 Cloak Strength 4 EM Shielding 4 Armor Coverage 2400 Resistance: KI 40 Resistance: TH 50 Resistance: EM 75 Weapon Cycling 30 Evasion (%) 55 Targeting Accuracy 12 Core Analysis 8 Recoil Reduction 6 Matter Filtering 30 Kinecelleration 30 Offensive Hacking 24 Defensive Hacking 25 Authchip Count 1 Trap Extractor Capacity 6 Item Schematics ----------------- Combat Drone Bay | -7/Data Miner | Free Lgt. Regenerative Plating | -7/Data Miner | Free Cld. Aerolev Unit | -7/Data Miner | Free Exp. Utility Shielding | -7/Data Miner | Free Imp. Lightning Gun | -7/Data Miner | Free Field Propulsion Drive | -7/Data Miner | Free Adv. Cooling System | -7/Data Miner | Free Mass Driver | -7/Data Miner | Free Imp. Target Analyzer | -7/Data Miner | Free Lrn. Missile Launcher | -5/Factory | Hacked Assault Drone Bay | -5/Zhirov | Free Exp. Heat Sink | -5/Zhirov | Free Exp. Optical Array | -5/Zhirov | Free Imp. Arc Thrower | -5/Zhirov | Free Hvy. Neutron Cannon | -3/Quarantine | Archive Adv. Matter Compressor | -3/Quarantine | Archive Robot Schematics ------------------ M-28 Smith | -7/Data Miner | Free E-15 Imp | -7/Data Miner | Free H-55 Commando | -7/Data Miner | Free O-24 Administrator | -7/Data Miner | Free Y-64 Sentinel | -7/Data Miner | Free K-01 Serf | -3/Quarantine | Archive Fabricated ------------ Adv. Coolant Injector | x2 | -7/Factory | Preloaded Arm. Medium Treads | x2 | -5/Factory | Preloaded Lrn. Missile Launcher | x1 | -5/Factory Repaired ---------- Reactive Plating | 48% | -8/Materials Battle Cannon | 13% | -7/Factory Adv. Assault Cannon | 3% | -7/Factory | Broken Huge Storage Unit | 6% | -4/Factory Alien Tech Used ----------------- Integrated Reactor Transdimensional Reconstructor Core Regenerator LC Capacitor Core Cannon Phase Redirector Core Stripper Integrity Redistributor Dimensional Node Initializer LRC Matter Compressor LRC Energy Well LRC Armor L-Cannon Subatomic Replicator Integrated Mediator Sigix Broadsword Core Expander High-powered Transdimensional Reconstructor Achievements -------------- None Challenges ------------ None Game ------ Seed SchematicCloakingSpoofer Manual? 0 Play Time 10:37:22 Cumulative 1197.0 hours Start 2025.06.17 @ 19:45:18 End 2025.06.21 @ 11:58:56 Sessions 23 Manual Loads 0 Difficulty Rogue Special Mode None Game No. 261 Rogue 229 Adventurer 31 Explorer 1 Win Type 1 Total 58 Types 37/2/9/7/0/0/2/0/0/1 Lore% 78 Gallery% 83 Achievement% 82 Wizard Run 0 Options --------- Layout 1 ASCII 0 Keyboard 0 Movement Arrows Keybinds 0 Fullscreen 1 Font 24/Terminus Map View 50x40 Zoom Use 0% Tactical HUD 1 Map Filters NONE Filters NONE Steam 1 RUN: 66621771-ca13-4a40-af53-12d64681a5b0